Workbook

Sheet LookUp (hidden)
A1: >100,000
A2: 50,001-100,000
A3: 10,001-50,000
A4: 3,301-10,000
A5: < 3,300

Sheet Start
B1: SC Water Utility Viability Tool v2.1 (July 2025)
A4: This self-assessment tool uses macros to create an interactive experience. When you click Start Tool, a grey pop-up box should appear. You may need to click Enable Content at the top of this window. For additional information, please see the Troubleshooting Tips available at
A5: ria.sc.gov/utility-viability
A6: If you need assistance, please contact the South Carolina Rural Infrastructure Authority at info@ria.sc.gov or (803) 737-0390.

Sheet Output (hidden)
A1: SC Water Utility Viability Tool Results (v2.1) | F1: Date Completed: | G1: =TODAY() -> 45894 | M1: 0.8 | O1: POINTS EARNED | P1: =C3 -> 2
A2: Utility Name | M2: 0.5 | O2: TOTAL POSSIBLE POINTS | P2: =E3 -> 95
A3: Viability Score | C3: =SUM(C7:C31,C33:C41,C45:C49,C51:C95) -> 2 | D3: / | E3: =SUM(E7:E31,E33:E41,E45:E49,E51:E95) -> 95 | F3: =_xlfn.CONCAT(" = ",TEXT(C3/E3,"##0%")) -> = 2% | K3: =C3 -> 2 | L3: =E3 -> 95 | M3: =M2 -> 0.5 | O3: VIABILITY SCORE | P3: =P1/P2 -> 0.02105263158 | S3: =E6 -> 0
A5: Note: Items that did not receive full potential points are in bold red font, with the points earned shaded in light orange. | B5: Your Response | C5: Points Earned | F5: Scoring Method | K5: full pts? | M5: Component Name
A6: Step 1. Infrastructure | C6: =_xlfn.CONCAT(SUM(C7:C31)," / ",SUM(E7:E31)," = ",TEXT((SUM(C7:C31)/SUM(E7:E31)),"##0%")) -> 2 / 23 = 9% | K6: =SUM(C7:C31) -> 2 | L6: =SUM(E7:E31) -> 23
A7: Primary system service population | B7: =IF(N7="","",N7) ->  | C7: =IF(B7="",0,IF(B7="Less than 3,300",0,IF(B7="3,300-10,000",H8,H7))) -> 0 | D7: / | E7: =H7 -> 4 | F7: > 10,000 | G7: = | H7: 4 | K7: =IF(C7=E7,"Yes","No") -> No | M7: lb_systemsize | N7: =IFERROR(INDEX(M115:M119,MATCH(1,$N$115:$N$119,0)),"") ->  | S7: UnemploymentState | T7: 4.1
F8: 3,300 - 10,000 | G8: = | H8: 2 | S8: PopulationChange_Label | T8: Population Change
F9: < 3,300 | G9: = | H9: 0 points | S9: MedianHouseIncome_Label | T9: Median Household Income
A10: Services provided | B10: =IF(N10="","",IF(R10,"Water & Sewer",IF(N10,"Water Only",IF(P10,"Sewer Only","")))) ->  | F10: not scored | M10: ob_waterservice | N10: =VLOOKUP($M10,$S:$T,2,0) -> FALSE | O10: ob_sewerservice | P10: =VLOOKUP($O10,$S:$T,2,0) -> FALSE | Q10: ob_bothservices | R10: =VLOOKUP($Q10,$S:$T,2,0) -> FALSE | S10: PovertyRate_Label | T10: Poverty Rate
A11: Date of last rate increase | B11: =IF(N11,"Less than 2 years ago",IF(P11,"Between 2 and 5 years",IF(R11,"More than 5 years ago","N/A"))) -> N/A | C11: =IF(N11,H11,IF(P11,H12,0)) -> 0 | D11: / | E11: =H11 -> 5 | F11: < 2 years ago | G11: = | H11: 5 | K11: =IF(C11=E11,"Yes","No") -> No | M11: ob_rate_increase_1 | N11: =VLOOKUP($M11,$S:$T,2,0) -> FALSE | O11: ob_rate_increase_2 | P11: =VLOOKUP($O11,$S:$T,2,0) -> FALSE | Q11: ob_rate_increase_3 | R11: =VLOOKUP($Q11,$S:$T,2,0) -> FALSE | S11: UnemploymentRate_Label | T11: Unemployment Rate
F12: 2-5 years ago | G12: = | H12: 2 | S12: PopulationChangeUser
F13: > 5 years ago | G13: = | H13: 0 | S13: MHIuser
A14: Monthly residential water service bill | B14: =N14 ->  | F14: See calculated measure in financial section | M14: tb_WaterBill | N14: =IF(VLOOKUP($M14,$S:$T,2,0)="","",VLOOKUP($M14,$S:$T,2,0)) ->  | O14: tb_CombinedBill | S14: PovertyRateUser
A15: Monthly residential sewer service bill | B15: =N15 ->  | F15: See calculated measure in financial section | M15: tb_SewerBill | P15: is N/A chkd? | Q15: meets crit? | S15: UnemploymentUser
A16: Estimated age of water distribution assets | B16: =IFERROR(IF(P16,"N/A",IF(N16="","",VLOOKUP(M16,S:T,2,0))),"-") ->  | C16: =IF(AND(Q16,Q17,Q18,Q19),2,0) -> 2 | D16: / | E16: =H16 -> 2 | F16: ≤ 50 years | G16: = | H16: 2 | K16: =IF(Q16,"Yes","No") -> Yes | M16: tb_age_distribution | O16: cb_distribution | P16: =IF(VLOOKUP($O16,$S:$T,2,0)="","",VLOOKUP($O16,$S:$T,2,0)) -> FALSE | Q16: =IF(N16="",TRUE,IF(N16>50,FALSE,TRUE)) -> TRUE | S16: combo_County
A17: Estimated age of water pumping/treatment assets | B17: =IFERROR(IF(P17,"N/A",IF(N17="","",VLOOKUP(M17,S:T,2,0))),"-") ->  | F17: ≤ 30 years | K17: =IF(Q17,"Yes","No") -> Yes | M17: tb_age_pumpingtreatment | O17: cb_water_pumping | P17: =IF(VLOOKUP($O17,$S:$T,2,0)="","",VLOOKUP($O17,$S:$T,2,0)) -> FALSE | Q17: TRUE | S17: combo_CityTown
A18: Estimated age of wastewater collection assets | B18: =IFERROR(IF(P18,"N/A",IF(N18="","",VLOOKUP(M18,S:T,2,0))),"-") ->  | F18: ≤ 50 years | K18: Yes | M18: tb_age_collection | O18: cb_collection | P18: =IF(VLOOKUP($O18,$S:$T,2,0)="","",VLOOKUP($O18,$S:$T,2,0)) -> FALSE | Q18: TRUE | S18: PopChange_Eq | T18: which is less than the State Benchmark of
A19: Estimated age of wastewater pumping/treatment assets | B19: =IFERROR(IF(P19,"N/A",IF(N19="","",VLOOKUP(M19,S:T,2,0))),"-") ->  | F19: ≤ 30 years | K19: =IF(Q19,"Yes","No") -> Yes | M19: tb_age_ww_pumping | O19: cb_ww_pumping | P19: =IF(VLOOKUP($O19,$S:$T,2,0)="","",VLOOKUP($O19,$S:$T,2,0)) -> FALSE | Q19: =IF(N19="",TRUE,IF(N19>50,FALSE,TRUE)) -> TRUE | S19: PopulationChangeState | T19: 1.36
A20: Any sanitary survey inspections in the past 5 years? | B20: =IF(N20="","",IF(N20,"Yes","No")) -> No | F20: not scored | M20: ob_W_inspection_yes | N20: FALSE | S20: PovertyRateState | T20: 14.2
A21: Any wastewater compliance inspections in the past 5 years? | B21: =IF(N21="","",IF(N21,"Yes","No")) -> No | F21: not scored | M21: ob_WW_inspection_yes | N21: FALSE | S21: MHIstate | T21: 66818
A22: Water System Compliance | B22: =IF(N26="","",VLOOKUP(N26,AA:AB,2,0)) ->  | C22: =IF(B23="",0,IF(OR(B23="yes",B28="yes"),0,IF(OR(Q25>0,Q26>1),4,IF(OR(Q28>0,Q26=1),6,IF(Q31=0,12,"check"))))) -> 0 | D22: / | E22: 12 | F22: Water & sewer scored together: | K22: =IF(C22=E22,"Yes","No") -> No | M22: ob_W_activeCAO_no | N22: FALSE | S22: MHI_eq | T22: which is less than the State Benchmark of
A23: Active consent or administrative order (CO)? | B23: =IF(AND(N22=FALSE,N23=FALSE),"",IF(N23,"Yes","No")) ->  | F23: Active CO | G23: = | H23: 0 points | K23: =IF(B23="","",IF(B23="Yes","No","Yes")) ->  | M23: ob_W_activeCAO_yes | N23: FALSE | S23: PR_Eq | T23: which is less than the State Benchmark of
A24: Inactive/closed consent/admin orders in last 5 years | B24: =IF(VLOOKUP($M24,$S:$T,2,0)="","",VLOOKUP($M24,$S:$T,2,0)) ->  | F24: Inactive/closed CO >0 and/or Unsats > 1 (no active CO) | G24: = | H24: 4 | K24: =IF(B24="","",IF(B24>0,"No","Yes")) ->  | M24: tb_w_CAO | S24: U_eq | T24: which is less than the State Benchmark of
A25: Notices of Violation in last 5 years | B25: =IF(VLOOKUP($M25,$S:$T,2,0)="","",VLOOKUP($M25,$S:$T,2,0)) ->  | K25: =IF(B25="","",IF(B25>0,"No","Yes")) ->  | M25: tb_W_NOV | P25: inactive/close CO | Q25: =SUM(B24,B29) -> 0 | S25: ob_CIP_no | T25: FALSE
A26: Unsatisfactory sanitary survey inspections in last 5 years | B26: =IF(VLOOKUP($M26,$S:$T,2,0)="","",VLOOKUP($M26,$S:$T,2,0)) ->  | M26: tb_w_unsat_inspections | P26: Unsats | Q26: =SUM(B26,B31) -> 0 | S26: ob_CIP_yes | T26: FALSE
A27: Sewer System Compliance | M27: ob_WW_activeCAO_no | N27: =VLOOKUP($M27,$S:$T,2,0) -> FALSE | S27: ob_AMP_no | T27: FALSE
A28: Active consent or administrative order? | B28: =IF(AND(N27=FALSE,N28=FALSE),"",IF(N28,"Yes","No")) ->  | F28: NOV > 0 and/or Unsats = 1 (and no active or closed CO) | G28: = | H28: 6 | K28: =IF(B28="","",IF(B28="Yes","No","Yes")) ->  | M28: ob_WW_activeCAO_yes | N28: =VLOOKUP($M28,$S:$T,2,0) -> FALSE | P28: NOV | Q28: =SUM(B25,B30) -> 0 | S28: ob_AMP_yes | T28: FALSE
A29: Inactive/closed consent/admin orders in last 5 years | B29: =IF(VLOOKUP($M29,$S:$T,2,0)="","",VLOOKUP($M29,$S:$T,2,0)) ->  | M29: tb_ww_CAO | P29: Unsats | Q29: =Q26 -> 0 | S29: ob_GIS_no | T29: FALSE
A30: Notices of Violation in last 5 years | B30: =IF(VLOOKUP($M30,$S:$T,2,0)="","",VLOOKUP($M30,$S:$T,2,0)) ->  | F30: 0 Unsats, NOVs, COs | G30: = | H30: 12 | M30: tb_ww_NOV | S30: ob_GIS_yes | T30: FALSE
A31: Unsatisfactory compliance inspections in last 5 years | B31: =IF(VLOOKUP($M31,$S:$T,2,0)="","",VLOOKUP($M31,$S:$T,2,0)) ->  | M31: tb_ww_unsat_inspections | P31: sum | Q31: =SUM(Q25:Q28) -> 0 | S31: tb_councilvacant
A32: Step 2. Managerial/Operational | C32: =_xlfn.CONCAT(SUM(C33:C41)," / ",SUM(E33:E41)," = ",TEXT((SUM(C33:C41)/SUM(E33:E41)),"##0%")) -> 0 / 11 = 0% | K32: =SUM(C33:C41) -> 0 | L32: =SUM(E33:E41) -> 11 | S32: ob_training_no | T32: FALSE
A33: Current capital improvement plan? | B33: =IF(AND(N33=FALSE,P33=FALSE),"",IF(N33,"Yes",IF(P33,"No",IF(NOT(OR(N33,P33)),"-","Check")))) ->  | C33: =IF(B33="Yes",H33,0) -> 0 | D33: / | E33: =H33 -> 3 | F33: Yes | G33: = | H33: 3 | K33: =IF(C33=E33,"Yes","No") -> No | M33: ob_CIP_yes | N33: =VLOOKUP(M33,S:T,2,0) -> FALSE | O33: ob_CIP_no | P33: =VLOOKUP(O33,S:T,2,0) -> FALSE | S33: ob_training_some | T33: FALSE
A34: Asset management program? | B34: =IF(AND(N34=FALSE,P34=FALSE),"",IF(N34,"Yes",IF(P34,"No",IF(NOT(OR(N34,P34)),"-","Check")))) ->  | C34: =IF(B34="Yes",1,0) -> 0 | D34: / | E34: 1 | F34: Yes | G34: = | H34: 1 point | K34: =IF(C34=E34,"Yes","No") -> No | M34: ob_AMP_yes | N34: =VLOOKUP(M34,S:T,2,0) -> FALSE | O34: ob_AMP_no | P34: =VLOOKUP(O34,S:T,2,0) -> FALSE | S34: ob_training_all | T34: FALSE
A35: GIS mapping? | C35: =IF(B35="Yes",H35,0) -> 0 | D35: / | E35: =H35 -> 2 | F35: Yes | G35: = | H35: 2 | K35: No | M35: ob_GIS_yes | N35: =VLOOKUP(M35,S:T,2,0) -> FALSE | O35: ob_GIS_no | P35: =VLOOKUP(O35,S:T,2,0) -> FALSE | S35: tb_keystaffvacant
A36: Emergency Preparedness Plan? | B36: =IF(AND(N36=FALSE,P36=FALSE),"",IF(N36,"Yes",IF(P36,"No",IF(NOT(OR(N36,P36)),"-","Check")))) ->  | C36: =IF(B36="Yes",1,0) -> 0 | D36: / | E36: 1 | F36: Yes | G36: = | H36: 1 point | K36: No | M36: ob_emergency_yes | N36: =VLOOKUP(M36,S:T,2,0) -> FALSE | S36: tb_mgmt
A37: Long-term staff vacancies | B37: =N37 ->  | C37: =IF(B37=F37,1,0) -> 0 | D37: / | E37: 1 | F37: 0 | G37: = | H37: 1 point | K37: No | M37: tb_keystaffvacant | N37: =IF(VLOOKUP($M37,$S:$T,2,0)="","",VLOOKUP($M37,$S:$T,2,0)) ->  | S37: tb_CombinedBill
A38: Long-term board vacancies | B38: =N38 ->  | C38: =IF(B38=F38,1,0) -> 0 | D38: / | E38: 1 | F38: 0 | G38: = | H38: 1 point | K38: No | M38: tb_councilvacant | N38: =IF(VLOOKUP($M38,$S:$T,2,0)="","",VLOOKUP($M38,$S:$T,2,0)) ->  | S38: tb_unrestrictedcash
A39: Governing body members trained related to operation and management of a utility in the last 2 years | B39: =IF(AND(N39=FALSE,P39=FALSE,R39=FALSE),"N/A",IF(N39,"None",IF(P39,"Some",IF(R39,"All",IF(NOT(OR(N39,P39,R39)),"-","Check"))))) -> N/A | C39: =IF(N39,0,IF(P39,1,IF(R39,2,0))) -> 0 | D39: / | E39: =H39 -> 2 | F39: All | G39: = | H39: 2 | K39: No | M39: ob_training_no | N39: =VLOOKUP($M39,$S:$T,2,0) -> FALSE | O39: ob_training_some | P39: =VLOOKUP($O39,$S:$T,2,0) -> FALSE | Q39: ob_training_all | R39: =VLOOKUP($Q39,$S:$T,2,0) -> FALSE | S39: tb_TOLTD
F40: Some | G40: = | H40: 1 point | S40: tb_NPA
F41: None | G41: = | H41: 0 | S41: tb_revenue
A42: Drinking Water Operator | B42: =IFERROR(VLOOKUP("X",$N$122:$O$125,2,0),"") ->  | F42: not scored | S42: tb_expenses
A43: Wastewater Operator | B43: =IFERROR(VLOOKUP("X",$N$126:$O$129,2,0),"") ->  | F43: not scored | S43: tb_change_in_net_assets
A44: Step 3. Socio-Economics | B44: =IF(N44="","",VLOOKUP(N44,AA:AB,2,0)) ->  | C44: =_xlfn.CONCAT(SUM(C45:C49)," / ",SUM(E45:E49)," = ",TEXT((SUM(C45:C49)/SUM(E45:E49)),"##0%")) -> 0 / 12 = 0% | K44: =SUM(C45:C49) -> 0 | L44: =SUM(E45:E49) -> 12 | S44: tb_ADE
A45: Primary Utility Service Area | B45: =IF(M45="","",IF(N45<>0,N45,IF(P45<>0,P45,"N/A"))) -> N/A | F45: not scored | M45: combo_County | N45: =VLOOKUP($M45,$S:$T,2,0) -> 0 | O45: combo_CityTown | P45: =VLOOKUP($O45,$S:$T,2,0) -> 0 | S45: tb_debtservicecoverage
A46: Population Change | B46: =IFERROR(N46/100,"") ->  | C46: =IF(N46="",0,IF(N46>=P46,H46,0)) -> 0 | D46: / | E46: =H46 -> 3 | F46: =_xlfn.CONCAT("≥ SC-wide rate (",ROUND(P46,2),"%)") -> ≥ SC-wide rate (1.36%) | G46: = | H46: 3 | K46: =IF(C46=E46,"Yes","No") -> No | M46: PopulationChangeUser | N46: =IF(VLOOKUP($M46,$S:$T,2,0)="","",VLOOKUP($M46,$S:$T,2,0)) ->  | O46: PopulationChangeState | P46: =IF(O46="","",VLOOKUP(O46,S:T,2,0)) -> 1.36 | S46: tb_days_cash_on_hand
A47: Median Household Income | B47: =IFERROR(N47,"") ->  | C47: =IF(N47="",0,IF(N47>=P47,H47,0)) -> 0 | D47: / | E47: =H47 -> 3 | F47: =_xlfn.CONCAT("≥ SC-wide rate ($",TEXT(P47,"0,000"),")") -> ≥ SC-wide rate ($66,818) | G47: = | H47: 3 | K47: No | M47: MHIuser | N47: =IF(VLOOKUP($M47,$S:$T,2,0)="","",VLOOKUP($M47,$S:$T,2,0)) ->  | O47: MHIstate | P47: =IF(O47="","",VLOOKUP(O47,S:T,2,0)) -> 66818 | S47: tb_debt_to_net_plant_assets
A48: Poverty Rate | B48: =IFERROR(N48/100,"") ->  | C48: =IF(N48<=P48,H48,0) -> 0 | D48: / | E48: =H48 -> 3 | F48: =_xlfn.CONCAT("≤ SC-wide rate (",ROUND(P48,2),"%)") -> ≤ SC-wide rate (14.2%) | G48: = | H48: 3 | K48: No | M48: PovertyRateUser | N48: =IF(VLOOKUP($M48,$S:$T,2,0)="","",VLOOKUP($M48,$S:$T,2,0)) ->  | O48: PovertyRateState | P48: =IF(O48="","",VLOOKUP(O48,S:T,2,0)) -> 14.2 | S48: tb_asset_conditions
A49: Unemployment Rate | B49: =IFERROR(N49/100,"") ->  | C49: =IF(N49<=P49,H49,0) -> 0 | D49: / | E49: =H49 -> 3 | F49: =_xlfn.CONCAT("≤ SC-wide rate (",ROUND(P49,3),"%)") -> ≤ SC-wide rate (4.1%) | G49: = | H49: 3 | K49: =IF(C49=E49,"Yes","No") -> No | M49: UnemploymentUser | N49: =IF(VLOOKUP($M49,$S:$T,2,0)="","",VLOOKUP($M49,$S:$T,2,0)) ->  | O49: UnemploymentState | P49: =IF(O49="","",VLOOKUP(O49,S:T,2,0)) -> 4.1 | S49: tb_StateBill_sewer | T49: 51.08
A50: Step 4. Financial | C50: =_xlfn.CONCAT(SUM(C51:C95)," / ",SUM(E51:E95)," = ",TEXT((SUM(C51:C95)/SUM(E51:E95)),"##0%")) -> 0 / 49 = 0% | K50: =SUM(C51:C95) -> 0 | L50: =SUM(E51:E95) -> 49 | S50: tb_BillpercentMHI_water
A51: Using audited financials? | B51: =IF(AND(N51=FALSE,P51=FALSE),"",IF(N51,"Yes",IF(P51,"No",IF(NOT(OR(N51,P51)),"-","Check")))) ->  | C51: =IF(B51="Yes",H51,0) -> 0 | D51: / | E51: =H51 -> 4 | F51: Yes | G51: = | H51: 4 | K51: No | M51: ob_audited_yes | N51: =VLOOKUP(M51,S:T,2,0) -> FALSE | O51: ob_audited_no | P51: =VLOOKUP(O51,S:T,2,0) -> FALSE | S51: tb_BillpercentMHI_sewer
A52: Other Source Used | B52: =IF(N52="","",VLOOKUP(M52,AA:AB,2,0)) ->  | F52: not scored | M52: tb_financial_source | S52: tb_BillpercentMHI_combined
A53: Fiscal Year Source | B53: =IF(N53="","",VLOOKUP(M53,AA:AB,2,0)) ->  | F53: not scored | M53: tb_fiscal_year | S53: tb_StateBill_Combined | T53: 92.47
A54: Step 4a. Balance Sheet | S54: tb_StateBill_water | T54: 41.39
A55: Unrestricted Cash | B55: =IF(P55,"Unable to Determine",IF(VLOOKUP(M55,S:T,2,0)="","-",VLOOKUP(M55,S:T,2,0))) -> - | F55: see calculated values below | M55: tb_unrestrictedcash | N55: =VLOOKUP(M55,S:T,2,0) -> 0 | O55: cb_utd_unrestrictedcash | P55: =VLOOKUP($O55,$S:$T,2,0) -> FALSE | S55: tb_annual_Interest_expense
A56: Total Outstanding Long Term Debt | B56: =IF(P56,"Unable to Determine",IF(VLOOKUP(M56,S:T,2,0)="","-",VLOOKUP(M56,S:T,2,0))) -> - | F56: see calculated values below | M56: tb_TOLTD | N56: =VLOOKUP(M56,S:T,2,0) -> 0 | O56: cb_utd_TOLTD | P56: =VLOOKUP($O56,$S:$T,2,0) -> FALSE | S56: tb_ADSP
A57: Fixed Assets Net of Accumulated Depreciation | B57: =IF(P57,"Unable to Determine",IF(VLOOKUP(M57,S:T,2,0)="","-",VLOOKUP(M57,S:T,2,0))) -> - | F57: see calculated values below | M57: tb_NPA | N57: =VLOOKUP(M57,S:T,2,0) -> 0 | O57: cb_utd_NPA | P57: =VLOOKUP($O57,$S:$T,2,0) -> FALSE | S57: hyp_K_num | T57: ( Unrestricted Cash ) * 365 days/year
A58: Step 4b. Income Statement | S58: hyp_K_dem | T58: Operating Expenses - Annual Depreciaton Expense
A59: Operating Revenue | B59: =IF(P59,"Unable to Determine",IF(VLOOKUP(M59,S:T,2,0)="","-",VLOOKUP(M59,S:T,2,0))) -> - | F59: see calculated values below | M59: tb_Revenue | N59: =VLOOKUP(M59,S:T,2,0) -> 0 | O59: cb_utd_revenue | P59: =VLOOKUP($O59,$S:$T,2,0) -> FALSE | S59: hyp_TOLTD | T59: Total Outstanding Long-Term Debt
A60: Operating Expenses | B60: =IF(P60,"Unable to Determine",IF(VLOOKUP(M60,S:T,2,0)="","-",VLOOKUP(M60,S:T,2,0))) -> - | F60: see calculated values below | M60: tb_Expenses | N60: =VLOOKUP(M60,S:T,2,0) -> 0 | O60: cb_utd_expenses | P60: =VLOOKUP($O60,$S:$T,2,0) -> FALSE | S60: hyp_NFA | T60: Net Fixed Assets
A61: Annual Depreciation Expense | B61: =IF(P61,"Unable to Determine",IF(VLOOKUP(M61,S:T,2,0)="","-",VLOOKUP(M61,S:T,2,0))) -> - | F61: see calculated values below | M61: tb_ADE | N61: =VLOOKUP(M61,S:T,2,0) -> 0 | O61: cb_utd_ADE | P61: =VLOOKUP($O61,$S:$T,2,0) -> FALSE | S61: hyp_ADE | T61: Annual Depreciation Expense
A62: Change in Net Assets | B62: =IF(P62,"Unable to Determine",IF(VLOOKUP(M62,S:T,2,0)="","-",VLOOKUP(M62,S:T,2,0))) -> - | C62: =IF(B62="-",0,IF(B62>0,H62,0)) -> 0 | D62: / | E62: =H62 -> 5 | F62: > $0 | G62: = | H62: 5 | K62: =IF(C62=E62,"Yes","No") -> No | M62: tb_change_in_net_assets | N62: =VLOOKUP(M62,S:T,2,0) -> 0 | O62: cb_utd_tb_change_in_net_assets | P62: =VLOOKUP($O62,$S:$T,2,0) -> FALSE | S62: hyp_NFA_2 | T62: Net Fixed Assets .
A63: Annual Interest Expense | B63: =IF(P63,"Unable to Determine",IF(VLOOKUP(M63,S:T,2,0)="","-",VLOOKUP(M63,S:T,2,0))) -> - | F63: see calculated values below | M63: tb_annual_Interest_expense | N63: =VLOOKUP(M63,S:T,2,0) -> 0 | O63: cb_utd_tb_annual_Interest_expense | P63: =VLOOKUP($O63,$S:$T,2,0) -> FALSE | S63: lb_viabilityscorelabel | T63: Viability Score
A64: Step 4c. Statement of Cash Flows | B64: =IF(N65="","",VLOOKUP(N65,AA:AB,2,0)) ->  | S64: lb_Viability
A65: Annual Debt Principal Payments | B65: =IF(P65,"Unable to Determine",IF(VLOOKUP(M65,S:T,2,0)="","-",VLOOKUP(M65,S:T,2,0))) -> - | F65: see calculated values below | M65: tb_ADSP | O65: cb_utd_ADSP | P65: =VLOOKUP($O65,$S:$T,2,0) -> FALSE | S65: ob_transfers_no | T65: FALSE
A66: Step 4d. Fund Transfers | S66: ob_transfers_yes | T66: FALSE
A67: County or Municipal Owned? | B67: =IF(M67="","",IF(N67,"Yes",IF(P67,"No",IF(NOT(OR(N67,P67)),"-","Check")))) -> - | F67: Non-county/municipal | G67: = | H67: N/A | M67: ob_county_or_muni_owned_yes | N67: =VLOOKUP($M67,$S:$T,2,0) -> FALSE | O67: ob_county_or_muni_owned_no | P67: =VLOOKUP($O67,$S:$T,2,0) -> FALSE | S67: ob_transfersfrom_no | T67: FALSE
A68: Transfers to/from General Fund (GF) | B68: =IF(N71,F71,IF(N70,F70,IF(N69,F69,IF(P68,F68,"")))) ->  | C68: =SUM(Q68:Q71) -> 0 | D68: / | E68: =MAX(H68:H71) -> 5 | F68: No Transfers | G68: = | H68: 5 | K68: =IF(C68=E68,"Yes","No") -> No | M68: ob_transfers_yes | N68: =VLOOKUP($M68,$S:$T,2,0) -> FALSE | O68: ob_transfers_no | P68: =VLOOKUP($O68,$S:$T,2,0) -> FALSE | Q68: =IF(AND(N68=FALSE,P68=FALSE),"",IF(P68,H68,"")) ->  | S68: ob_transfersfrom_yes | T68: FALSE
F69: Transfers from GF | G69: = | H69: 0 | M69: ob_transfersfrom_yes | N69: =VLOOKUP($M69,$S:$T,2,0) -> FALSE | O69: ob_transfersfrom_no | P69: =VLOOKUP($O69,$S:$T,2,0) -> FALSE | Q69: =IF(AND(N69=FALSE,P69=FALSE),"",IF(P69,H69,"")) ->  | S69: ob_transfers_to_5_no | T69: FALSE
F70: Transfers to GF of 5-10% of Gross Revenues | G70: = | H70: 2 | M70: ob_transfers_to_5_yes | N70: =VLOOKUP($M70,$S:$T,2,0) -> FALSE | O70: ob_transfers_to_5_no | P70: =VLOOKUP($O70,$S:$T,2,0) -> FALSE | Q70: =IF(AND(N70=FALSE,P70=FALSE),"",IF(N70,H70,0)) ->  | S70: ob_transfers_to_5_yes | T70: FALSE
F71: Transfers to GF > 10% of Gross Revenues | G71: = | H71: 0 | M71: ob_transfers_to_10_yes | N71: =VLOOKUP($M71,$S:$T,2,0) -> FALSE | O71: ob_transfers_to_10_no | P71: =VLOOKUP($O71,$S:$T,2,0) -> FALSE | Q71: =IF(AND(N71=FALSE,P71=FALSE),"",IF(N71,H71,0)) ->  | S71: ob_transfers_to_10_no | T71: FALSE
A72: Step 4e. Calculated Financial Measures | S72: ob_transfers_to_10_yes | T72: FALSE
A73: Debt Service Coverage (Operating Revenues - Operating Expenses + Annual Depreciation Expense) / (Annual Interest Expense + Annual Debt Principal Payments) | B73: =IF(P73=FALSE,"Cannot Calculate",IF(P74="No debt","No Debt",IF(N73="","",VLOOKUP(M73,S:T,2,0)))) -> Cannot Calculate | C73: =IF(B73="No debt",H77,N101) -> 0 | D73: / | E73: =MAX(H73:H77) -> 10 | F73: < 1.1 or unknown | G73: = | H73: 0 | K73: =IF(C73=E73,"Yes","No") -> No | M73: tb_debtservicecoverage | N73: =IF(VLOOKUP($M73,$S:$T,2,0)="","",VLOOKUP($M73,$S:$T,2,0)) ->  | O73: calc? | P73: =IFERROR(IF(B63+B65=0,TRUE,IF(OR(P59,P60,P63,P65),FALSE,TRUE)),FALSE) -> FALSE | S73: lb_incomplete
F74: ≥ 1.1 but < 1.25 | G74: = | H74: 3 | O74: no debt? | P74: =IFERROR(IF(B63+B65=0,"No Debt",""),"") ->  | S74: lb_SB_Water_Compare
F75: ≥ 1.25 but < 1.50 | G75: = | H75: 5 | S75: lb_SB_Sewer_Compare
F76: ≥ 1.50 but < 2.0 | G76: = | H76: 8 | S76: lb_SB_combined_Compare
F77: ≥ 2.0 or no debt | G77: = | H77: 10 | S77: tb_age_ww_pumping
A78: Days Cash on Hand (Unrestricted Cash * 365 days/year) / (Operating Expenses - Annual Depreciation Expense) | B78: =IF(P78=FALSE,"Cannot Calculate",IF(N78="","",VLOOKUP(M78,S:T,2,0))) -> Cannot Calculate | C78: =N108 -> 0 | D78: / | E78: =MAX(H78:H82) -> 10 | F78: < 90 days | G78: = | H78: 0 | K78: =IF(C78=E78,"Yes","No") -> No | M78: tb_days_cash_on_hand | N78: =IF(VLOOKUP($M78,$S:$T,2,0)="","",VLOOKUP($M78,$S:$T,2,0)) ->  | O78: calc? | P78: =IF(OR(OR(N55=0,N60=0),OR(P55,P60)),FALSE,TRUE) -> FALSE | S78: tb_age_collection
F79: ≥ 90 but <180 days | G79: = | H79: 5 | S79: cb_collection | T79: FALSE
F80: ≥ 180 but < 240 days | G80: = | H80: 8 | S80: cb_ww_pumping | T80: FALSE
F81: > 240 days | G81: = | H81: 10 | S81: tb_SewerBill
F82: Unrestricted Cash or Op. Expenses = 0 or Unknown | G82: = | H82: 0 | S82: tb_ww_CAO
A83: Debt to Net Fixed Assets Total Outstanding Long-Term Debt / Net Fixed Assets | B83: =IF(OR(B56="-",B56=0),"N/A",IF(P83=FALSE,"Cannot Calculate",IF(N83="","",VLOOKUP(M83,S:T,2,0)/100))) -> N/A | C83: =IF(B83<0.5,H83,IF(B56=0,"N/A",IF(P83=FALSE,H84,0))) -> 0 | D83: / | E83: =IF(OR(B56=0,B56="-"),"N/A",5) -> N/A | F83: Less than 50% | G83: = | H83: 5 | K83: =IF(C83=E83,"Yes","No") -> No | M83: tb_debt_to_net_plant_assets | N83: =IF(VLOOKUP($M83,$S:$T,2,0)="","",VLOOKUP($M83,$S:$T,2,0)) ->  | O83: calc? | P83: =IF(OR(P56,P57),FALSE,TRUE) -> TRUE | S83: tb_ww_NOV
F84: Long Term Debt or Net Fixed Assets Unknown | G84: = | H84: 0 | S84: ob_WW_inspection_yes | T84: FALSE
F85: Long Term Debt = 0 | G85: = | H85: N/A | S85: ob_WW_inspection_no | T85: FALSE
A86: Asset Conditions Net Fixed Assets / Annual Depreciation Expense | B86: =IF(P86=FALSE,"Cannot Calculate",IF(N86="","",VLOOKUP(M86,S:T,2,0))) ->  | C86: =IF(OR(B86="",B86="Cannot Calculate"),0,IF(B86>=25,H86,0)) -> 0 | D86: / | E86: 5 | F86: ≥ 25 years | G86: = | H86: 5 | K86: =IF(C86=E86,"Yes","No") -> No | M86: tb_asset_conditions | N86: =IF(VLOOKUP($M86,$S:$T,2,0)="","",VLOOKUP($M86,$S:$T,2,0)) ->  | O86: calc? | P86: =IF(OR(P57,P61),FALSE,TRUE) -> TRUE | S86: tb_age_pumpingtreatment
F87: Net fixed assets or depreciation expense unknown or =0 | G87: = | H87: 0 | Q87: only 1 | R87: combined | S87: tb_age_distribution
A88: Annual Bill as % of MHI (Monthly Bill * 12 months * 100) / Median Household Income | B88: =IFERROR(IF(B10="Water & Sewer",_xlfn.CONCAT("Water Bill: ",CHAR(10),TEXT(N88,"0.00%")," of MHI",CHAR(10),"Sewer Bill: ",CHAR(10),TEXT(N89,"0.00%")," of MHI"),IF(B10="Water Only",_xlfn.CONCAT("Water Bill: ",TEXT(N88,"0.00%")," of MHI"),IF(B10="Sewer Only",_xlfn.CONCAT("Sewer Bill: ",TEXT(N89,"0.00%")," of MHI"),0))),"Cannot Calculate") -> 0 | C88: =IFERROR(IF(B10="Water & Sewer",SUM(R88:R90),IF(B10="Water Only",Q88,IF(B10="Sewer Only",Q89,"-"))),0) -> - | D88: / | E88: 10 | F88: If Water/Sewer Only | K88: =IF(C88=E88,"Yes","No") -> No | M88: tb_BillpercentMHI_water | N88: =B14*12/$B$47 ->  | O88: 0.0125 | P88: 0.015 | Q88: =IF(AND(N88>=0.01,N88<0.0125),4,IF(AND(N88>=0.0125,N88<0.02),10,0)) ->  | R88: =IF(AND(N88>=0.01,N88<0.0125),2,IF(AND(N88>=0.0125,N88<0.02),5,0)) ->  | S88: cb_distribution | T88: FALSE
F89: ≥1% and <1.25% | G89: = | H89: 4 | M89: tb_BillpercentMHI_sewer | N89: =B15*12/$B$47 ->  | O89: 0.0125 | P89: 0.015 | Q89: =IF(AND(N89>=0.01,N89<0.0125),4,IF(AND(N89>=0.0125,N89<0.02),10,0)) ->  | R89: =IF(AND(N89>=0.01,N89<0.0125),2,IF(AND(N89>=0.0125,N89<0.02),5,0)) ->  | S89: cb_water_pumping | T89: FALSE
F90: ≥1.25% and <2% | G90: = | H90: 10 | S90: tb_WaterBill
F91: If Both Water & Sewer: | S91: tb_w_unsat_inspections
F92: Water: ≥1% and <1.25% | G92: = | H92: 2 | S92: tb_w_NOV
F93: Water: ≥1.25% and <2% | G93: = | H93: 5 | S93: tb_w_CAO
F94: Sewer: ≥1% and <1.25% | G94: = | H94: 2 | S94: ob_W_inspection_yes | T94: FALSE
F95: Sewer: ≥1.25% and <2% | G95: = | H95: 5 | M95: step 4a | N95: =COUNTIF(G54:G56,"-") -> 0 | S95: ob_W_inspection_no | T95: FALSE
M96: step 4b | N96: =COUNTIF(G58:G62,"-") -> 0 | S96: ob_rate_increase_1 | T96: FALSE
M97: step 4d | N97: =COUNTIF(G67:G70,"-") -> 0 | S97: ob_rate_increase_2 | T97: FALSE
S98: ob_rate_increase_3 | T98: FALSE
S99: lb_financial_source | T99: What is the source of the financial information you are using?
S100: ob_audited_yes | T100: FALSE
M101: Debt Service Coverage | N101: =IFERROR(IF(B73<M103,0,INDEX(N103:N106,MATCH(B73,M103:M106,1))),0) -> 0 | S101: ob_audited_no | T101: FALSE
M102: min | N102: pts | S102: tb_financial_source
M103: 1.1 | N103: =H74 -> 3 | S103: tb_fiscal_year
M104: 1.25 | N104: =H75 -> 5 | S104: cb_utd_revenue | T104: FALSE
M105: 1.5 | N105: =H76 -> 8 | S105: cb_utd_expenses | T105: FALSE
M106: 2 | N106: =H77 -> 10 | S106: cb_utd_ADE | T106: FALSE
S107: cb_utd_tb_change_in_net_assets | T107: FALSE
M108: Days in Cash | N108: =IFERROR(IF(B78<M110,0,INDEX(N110:N113,MATCH(B78,M110:M113,1))),0) -> 0 | S108: cb_utd_tb_annual_Interest_expense | T108: FALSE
M109: min | N109: pts | S109: cb_utd_ADSP | T109: FALSE
M110: 90 | N110: =H79 -> 5 | S110: cb_utd_unrestrictedcash | T110: FALSE
M111: 180 | N111: =H80 -> 8 | S111: cb_utd_TOLTD | T111: FALSE
M112: 240 | N112: =H81 -> 10 | S112: cb_utd_NPA | T112: FALSE
S113: ob_county_or_muni_owned_no | T113: FALSE
S114: ob_county_or_muni_owned_yes | T114: FALSE
M115: > 100,000 | N115: =IF(VLOOKUP(O115,$S:$T,2,0)=FALSE,0,1) -> 0 | O115: ob_pop_option1 | S115: ob_W_activeCAO_no | T115: FALSE
M116: 50,001-100,000 | N116: =IF(VLOOKUP(O116,$S:$T,2,0)=FALSE,0,1) -> 0 | O116: ob_pop_option2 | S116: ob_W_activeCAO_yes | T116: FALSE
M117: 10,001-50,000 | N117: =IF(VLOOKUP(O117,$S:$T,2,0)=FALSE,0,1) -> 0 | O117: ob_pop_option3 | S117: ob_WW_activeCAO_no | T117: FALSE
M118: 3,300-10,000 | N118: =IF(VLOOKUP(O118,$S:$T,2,0)=FALSE,0,1) -> 0 | O118: ob_pop_option4 | S118: ob_WW_activeCAO_yes | T118: FALSE
M119: Less than 3,300 | N119: =IF(VLOOKUP(O119,$S:$T,2,0)=FALSE,0,1) -> 0 | O119: ob_pop_option5 | S119: lb_viability_max
S120: lb_viability_percentage
S121: ob_pop_option1 | T121: FALSE
M122: ob_oper_water_FTE | N122: =IF(VLOOKUP($M122,$S:$T,2,0),"X",0) -> 0 | O122: Full-Time Employee | S122: ob_pop_option2 | T122: FALSE
M123: ob_oper_water_PTE | N123: 0 | O123: Part-Time Employee | S123: ob_pop_option3 | T123: FALSE
M124: ob_oper_water_OC | N124: 0 | O124: Outside Contractor | S124: ob_pop_option4 | T124: FALSE
M125: ob_oper_water_NA | N125: 0 | O125: N/A | S125: ob_pop_option5 | T125: FALSE
M126: ob_oper_WW_FTE | N126: 0 | O126: Full-Time Employee | S126: tb_ww_unsat_inspections
M127: ob_oper_WW_PTE | N127: 0 | O127: Part-Time Employee | S127: lb_backgroundinfo_date1 | T127: Unemployment rates are from the Bureau of Labor Statistics (2024 annual averages by county).
M128: ob_oper_WW_OC | N128: 0 | O128: Outside Contractor | S128: lb_backgroundinfo_date2 | T128: All other data are from Census.gov (ACS 5 Year Estimates Data Profiles for 2022 and 2023).
M129: ob_oper_WW_NA | N129: 0 | O129: N/A | S129: tb_Username
S130: OB_waterservice | T130: FALSE
S131: OB_sewerservice | T131: FALSE
S132: OB_bothservices | T132: FALSE
S133: ob_emergency_no | T133: FALSE
S134: ob_emergency_yes | T134: FALSE
S135: ob_oper_water_OC | T135: FALSE
S136: ob_oper_water_FTE | T136: FALSE
S137: ob_oper_water_PTE | T137: FALSE
S138: ob_oper_water_NA | T138: FALSE
S139: ob_oper_WW_NA | T139: FALSE
S140: ob_oper_WW_OC | T140: FALSE
S141: ob_oper_WW_FTE | T141: FALSE
S142: ob_oper_WW_PTE | T142: FALSE
S143: lb_backgroundinfo_link1 | T143: https://www.bls.gov/lau/
S144: lb_backgroundinfo_link2 | T144: https://data.census.gov/advanced
S145: ob_oper_WW_FTE
S146: ob_oper_WW_PTE
S147: ob_oper_WW_OC
S148: ob_oper_WW_NA

Sheet State (hidden)
A1: Location | B1: 2022 5-yr population estimate | C1: 2023 5-yr population estimate | D1: Pop Change | E1: 2023 Poverty Rate | F1: 2024 Unemployment Rate | G1: 2023 Median Household Income | I1: Data last pulled on 4/14/25 (ACS) and 5/28/25 (BLS). Updated unemployment stats are released in May; others are released in December.
A2: South Carolina | B2: 5142750 | C2: 5212774 | D2: 0.01361606145 | E2: 14.2 | F2: 4.1 | G2: 66818 | I2: Unemployment rates are from the Bureau of Labor Statistics (2024 annual averages by county). | U2: link | V2: https://www.bls.gov/lau/
I3: All other data are from Census.gov (ACS 5 Year Estimates Data Profiles for 2022 and 2023). | U3: link | V3: https://data.census.gov/advanced
B4: State Bill Comparison (80th Percentile Benchmark)
B5: Water | C5: Sewer | D5: Combined
B6: 41.39 | C6: 51.08 | D6: =SUM(B6:C6) -> 92.47 | I6: Benchmarks are from RIA's FY21 Rate Survey

Sheet County (hidden)
A1: Location | B1: 2022 5-yr population estimate | C1: 2023 5-yr population estimate | D1: Pop Change | E1: 2023 Poverty Rate | F1: 2024 Unemployment Rate | G1: 2023 Median Household Income
A2: Abbeville County | B2: 24368 | C2: 24352 | D2: =(RawData52[[#This Row],[2023 5-yr population estimate]]-RawData52[[#This Row],[2022 5-yr population estimate]])/RawData52[[#This Row],[2022 5-yr population estimate]] -> -0.0006565988181 | E2: 14.1 | F2: 4.5 | G2: 52112
A3: Aiken County | B3: 169865 | C3: 171949 | D3: =(RawData52[[#This Row],[2023 5-yr population estimate]]-RawData52[[#This Row],[2022 5-yr population estimate]])/RawData52[[#This Row],[2022 5-yr population estimate]] -> 0.01226856621 | E3: 13.9 | F3: 4.2 | G3: 67940
A4: Allendale County | B4: 8073 | C4: 7738 | D4: =(RawData52[[#This Row],[2023 5-yr population estimate]]-RawData52[[#This Row],[2022 5-yr population estimate]])/RawData52[[#This Row],[2022 5-yr population estimate]] -> -0.04149634584 | E4: 26.5 | F4: 6.3 | G4: 31603
A5: Anderson County | B5: 204592 | C5: 207218 | D5: =(RawData52[[#This Row],[2023 5-yr population estimate]]-RawData52[[#This Row],[2022 5-yr population estimate]])/RawData52[[#This Row],[2022 5-yr population estimate]] -> 0.01283530148 | E5: 14.4 | F5: 3.8 | G5: 64683
A6: Bamberg County | B6: 13311 | C6: 13164 | D6: =(RawData52[[#This Row],[2023 5-yr population estimate]]-RawData52[[#This Row],[2022 5-yr population estimate]])/RawData52[[#This Row],[2022 5-yr population estimate]] -> -0.01104349786 | E6: 21.6 | F6: 6.2 | G6: 43206
A7: Barnwell County | B7: 20653 | C7: 20565 | D7: =(RawData52[[#This Row],[2023 5-yr population estimate]]-RawData52[[#This Row],[2022 5-yr population estimate]])/RawData52[[#This Row],[2022 5-yr population estimate]] -> -0.004260882196 | E7: 28.5 | F7: 5.6 | G7: 41800
A8: Beaufort County | B8: 189071 | C8: 192123 | D8: =(RawData52[[#This Row],[2023 5-yr population estimate]]-RawData52[[#This Row],[2022 5-yr population estimate]])/RawData52[[#This Row],[2022 5-yr population estimate]] -> 0.01614208419 | E8: 10.5 | F8: 3.8 | G8: 84819
A9: Berkeley County | B9: 231419 | C9: 238723 | D9: =(RawData52[[#This Row],[2023 5-yr population estimate]]-RawData52[[#This Row],[2022 5-yr population estimate]])/RawData52[[#This Row],[2022 5-yr population estimate]] -> 0.03156179916 | E9: 10.3 | F9: 3.7 | G9: 82327
A10: Calhoun County | B10: 14145 | C10: 14150 | D10: =(RawData52[[#This Row],[2023 5-yr population estimate]]-RawData52[[#This Row],[2022 5-yr population estimate]])/RawData52[[#This Row],[2022 5-yr population estimate]] -> 0.0003534817957 | E10: 16.3 | F10: 4.6 | G10: 56690
A11: Charleston County | B11: 409840 | C11: 414711 | D11: =(RawData52[[#This Row],[2023 5-yr population estimate]]-RawData52[[#This Row],[2022 5-yr population estimate]])/RawData52[[#This Row],[2022 5-yr population estimate]] -> 0.0118851259 | E11: 11.6 | F11: 3.4 | G11: 84320
A12: Cherokee County | B12: 56200 | C12: 56299 | D12: =(RawData52[[#This Row],[2023 5-yr population estimate]]-RawData52[[#This Row],[2022 5-yr population estimate]])/RawData52[[#This Row],[2022 5-yr population estimate]] -> 0.001761565836 | E12: 18.5 | F12: 5.7 | G12: 49047
A13: Chester County | B13: 32171 | C13: 32177 | D13: =(RawData52[[#This Row],[2023 5-yr population estimate]]-RawData52[[#This Row],[2022 5-yr population estimate]])/RawData52[[#This Row],[2022 5-yr population estimate]] -> 0.0001865033726 | E13: 19.3 | F13: 5.5 | G13: 51216
A14: Chesterfield County | B14: 43536 | C14: 43575 | D14: =(RawData52[[#This Row],[2023 5-yr population estimate]]-RawData52[[#This Row],[2022 5-yr population estimate]])/RawData52[[#This Row],[2022 5-yr population estimate]] -> 0.0008958103638 | E14: 20.2 | F14: 4.7 | G14: 47620
A15: Clarendon County | B15: 31163 | C15: 31037 | D15: =(RawData52[[#This Row],[2023 5-yr population estimate]]-RawData52[[#This Row],[2022 5-yr population estimate]])/RawData52[[#This Row],[2022 5-yr population estimate]] -> -0.004043256426 | E15: 18.5 | F15: 5.5 | G15: 48887
A16: Colleton County | B16: 38561 | C16: 38623 | D16: =(RawData52[[#This Row],[2023 5-yr population estimate]]-RawData52[[#This Row],[2022 5-yr population estimate]])/RawData52[[#This Row],[2022 5-yr population estimate]] -> 0.00160784212 | E16: 18.7 | F16: 4.6 | G16: 48779
A17: Darlington County | B17: 63025 | C17: 62754 | D17: =(RawData52[[#This Row],[2023 5-yr population estimate]]-RawData52[[#This Row],[2022 5-yr population estimate]])/RawData52[[#This Row],[2022 5-yr population estimate]] -> -0.004299881 | E17: 20.3 | F17: 4.8 | G17: 47419
A18: Dillon County | B18: 28255 | C18: 28031 | D18: =(RawData52[[#This Row],[2023 5-yr population estimate]]-RawData52[[#This Row],[2022 5-yr population estimate]])/RawData52[[#This Row],[2022 5-yr population estimate]] -> -0.007927800389 | E18: 29.2 | F18: 6 | G18: 44038
A19: Dorchester County | B19: 162139 | C19: 164322 | D19: =(RawData52[[#This Row],[2023 5-yr population estimate]]-RawData52[[#This Row],[2022 5-yr population estimate]])/RawData52[[#This Row],[2022 5-yr population estimate]] -> 0.01346375641 | E19: 11.5 | F19: 3.7 | G19: 76896
A20: Edgefield County | B20: 26181 | C20: 26508 | D20: =(RawData52[[#This Row],[2023 5-yr population estimate]]-RawData52[[#This Row],[2022 5-yr population estimate]])/RawData52[[#This Row],[2022 5-yr population estimate]] -> 0.01248997365 | E20: 16.4 | F20: 3.9 | G20: 67092
A21: Fairfield County | B21: 20942 | C21: 20741 | D21: =(RawData52[[#This Row],[2023 5-yr population estimate]]-RawData52[[#This Row],[2022 5-yr population estimate]])/RawData52[[#This Row],[2022 5-yr population estimate]] -> -0.00959793716 | E21: 16.9 | F21: 5 | G21: 46972
A22: Florence County | B22: 137015 | C22: 136921 | D22: =(RawData52[[#This Row],[2023 5-yr population estimate]]-RawData52[[#This Row],[2022 5-yr population estimate]])/RawData52[[#This Row],[2022 5-yr population estimate]] -> -0.0006860562712 | E22: 18.3 | F22: 4.4 | G22: 56650
A23: Georgetown County | B23: 63594 | C23: 64200 | D23: =(RawData52[[#This Row],[2023 5-yr population estimate]]-RawData52[[#This Row],[2022 5-yr population estimate]])/RawData52[[#This Row],[2022 5-yr population estimate]] -> 0.009529200868 | E23: 14.4 | F23: 4.6 | G23: 66734
A24: Greenville County | B24: 528251 | C24: 537575 | D24: =(RawData52[[#This Row],[2023 5-yr population estimate]]-RawData52[[#This Row],[2022 5-yr population estimate]])/RawData52[[#This Row],[2022 5-yr population estimate]] -> 0.01765070014 | E24: 11 | F24: 3.7 | G24: 74624
A25: Greenwood County | B25: 69309 | C25: 69329 | D25: =(RawData52[[#This Row],[2023 5-yr population estimate]]-RawData52[[#This Row],[2022 5-yr population estimate]])/RawData52[[#This Row],[2022 5-yr population estimate]] -> 0.0002885628129 | E25: 17.1 | F25: 5.2 | G25: 50635
A26: Hampton County | B26: 18890 | C26: 18555 | D26: =(RawData52[[#This Row],[2023 5-yr population estimate]]-RawData52[[#This Row],[2022 5-yr population estimate]])/RawData52[[#This Row],[2022 5-yr population estimate]] -> -0.01773425093 | E26: 20 | F26: 4 | G26: 43059
A27: Horry County | B27: 356578 | C27: 368937 | D27: =(RawData52[[#This Row],[2023 5-yr population estimate]]-RawData52[[#This Row],[2022 5-yr population estimate]])/RawData52[[#This Row],[2022 5-yr population estimate]] -> 0.03466001828 | E27: 12.8 | F27: 4.7 | G27: 64623
A28: Jasper County | B28: 29444 | C28: 30658 | D28: =(RawData52[[#This Row],[2023 5-yr population estimate]]-RawData52[[#This Row],[2022 5-yr population estimate]])/RawData52[[#This Row],[2022 5-yr population estimate]] -> 0.04123081103 | E28: 18.3 | F28: 4.1 | G28: 63503
A29: Kershaw County | B29: 65779 | C29: 66924 | D29: =(RawData52[[#This Row],[2023 5-yr population estimate]]-RawData52[[#This Row],[2022 5-yr population estimate]])/RawData52[[#This Row],[2022 5-yr population estimate]] -> 0.01740677116 | E29: 14.1 | F29: 4.1 | G29: 64343
A30: Lancaster County | B30: 97611 | C30: 100905 | D30: =(RawData52[[#This Row],[2023 5-yr population estimate]]-RawData52[[#This Row],[2022 5-yr population estimate]])/RawData52[[#This Row],[2022 5-yr population estimate]] -> 0.03374619664 | E30: 12.3 | F30: 4.3 | G30: 74751
A31: Laurens County | B31: 67456 | C31: 67904 | D31: =(RawData52[[#This Row],[2023 5-yr population estimate]]-RawData52[[#This Row],[2022 5-yr population estimate]])/RawData52[[#This Row],[2022 5-yr population estimate]] -> 0.006641366224 | E31: 17.6 | F31: 4.4 | G31: 55517
A32: Lee County | B32: 16557 | C32: 16330 | D32: =(RawData52[[#This Row],[2023 5-yr population estimate]]-RawData52[[#This Row],[2022 5-yr population estimate]])/RawData52[[#This Row],[2022 5-yr population estimate]] -> -0.0137102132 | E32: 23.3 | F32: 6.3 | G32: 44145
A33: Lexington County | B33: 295934 | C33: 300370 | D33: =(RawData52[[#This Row],[2023 5-yr population estimate]]-RawData52[[#This Row],[2022 5-yr population estimate]])/RawData52[[#This Row],[2022 5-yr population estimate]] -> 0.01498982881 | E33: 11.4 | F33: 3.6 | G33: 75014
A34: Marion County | B34: 29212 | C34: 28900 | D34: =(RawData52[[#This Row],[2023 5-yr population estimate]]-RawData52[[#This Row],[2022 5-yr population estimate]])/RawData52[[#This Row],[2022 5-yr population estimate]] -> -0.01068054224 | E34: 27.3 | F34: 6.2 | G34: 34501
A35: Marlboro County | B35: 26585 | C35: 26285 | D35: =(RawData52[[#This Row],[2023 5-yr population estimate]]-RawData52[[#This Row],[2022 5-yr population estimate]])/RawData52[[#This Row],[2022 5-yr population estimate]] -> -0.01128455896 | E35: 26.2 | F35: 7.2 | G35: 36293
A36: McCormick County | B36: 9612 | C36: 9701 | D36: =(RawData52[[#This Row],[2023 5-yr population estimate]]-RawData52[[#This Row],[2022 5-yr population estimate]])/RawData52[[#This Row],[2022 5-yr population estimate]] -> 0.009259259259 | E36: 18 | F36: 5.1 | G36: 55344
A37: Newberry County | B37: 37918 | C37: 38121 | D37: =(RawData52[[#This Row],[2023 5-yr population estimate]]-RawData52[[#This Row],[2022 5-yr population estimate]])/RawData52[[#This Row],[2022 5-yr population estimate]] -> 0.005353657893 | E37: 16 | F37: 4.2 | G37: 59670
A38: Oconee County | B38: 78775 | C38: 79566 | D38: =(RawData52[[#This Row],[2023 5-yr population estimate]]-RawData52[[#This Row],[2022 5-yr population estimate]])/RawData52[[#This Row],[2022 5-yr population estimate]] -> 0.01004125674 | E38: 16.4 | F38: 3.9 | G38: 60193
A39: Orangeburg County | B39: 84159 | C39: 83531 | D39: =(RawData52[[#This Row],[2023 5-yr population estimate]]-RawData52[[#This Row],[2022 5-yr population estimate]])/RawData52[[#This Row],[2022 5-yr population estimate]] -> -0.007462065852 | E39: 23.9 | F39: 6 | G39: 43214
A40: Pickens County | B40: 131106 | C40: 132604 | D40: =(RawData52[[#This Row],[2023 5-yr population estimate]]-RawData52[[#This Row],[2022 5-yr population estimate]])/RawData52[[#This Row],[2022 5-yr population estimate]] -> 0.01142586914 | E40: 17.2 | F40: 4 | G40: 59411
A41: Richland County | B41: 416161 | C41: 418725 | D41: =(RawData52[[#This Row],[2023 5-yr population estimate]]-RawData52[[#This Row],[2022 5-yr population estimate]])/RawData52[[#This Row],[2022 5-yr population estimate]] -> 0.006161077083 | E41: 16.9 | F41: 4.3 | G41: 61699
A42: Saluda County | B42: 18952 | C42: 18958 | D42: =(RawData52[[#This Row],[2023 5-yr population estimate]]-RawData52[[#This Row],[2022 5-yr population estimate]])/RawData52[[#This Row],[2022 5-yr population estimate]] -> 0.0003165892782 | E42: 19.4 | F42: 3.6 | G42: 52957
A43: Spartanburg County | B43: 330119 | C43: 338096 | D43: =(RawData52[[#This Row],[2023 5-yr population estimate]]-RawData52[[#This Row],[2022 5-yr population estimate]])/RawData52[[#This Row],[2022 5-yr population estimate]] -> 0.02416401358 | E43: 14.5 | F43: 4.2 | G43: 64195
A44: Sumter County | B44: 105199 | C44: 104853 | D44: =(RawData52[[#This Row],[2023 5-yr population estimate]]-RawData52[[#This Row],[2022 5-yr population estimate]])/RawData52[[#This Row],[2022 5-yr population estimate]] -> -0.003289004648 | E44: 16.4 | F44: 5.2 | G44: 55990
A45: Union County | B45: 27158 | C45: 26990 | D45: =(RawData52[[#This Row],[2023 5-yr population estimate]]-RawData52[[#This Row],[2022 5-yr population estimate]])/RawData52[[#This Row],[2022 5-yr population estimate]] -> -0.006186022535 | E45: 22.7 | F45: 5.5 | G45: 41200
A46: Williamsburg County | B46: 30879 | C46: 30517 | D46: =(RawData52[[#This Row],[2023 5-yr population estimate]]-RawData52[[#This Row],[2022 5-yr population estimate]])/RawData52[[#This Row],[2022 5-yr population estimate]] -> -0.01172317756 | E46: 23.6 | F46: 6.6 | G46: 43471
A47: York County | B47: 282987 | C47: 288559 | D47: =(RawData52[[#This Row],[2023 5-yr population estimate]]-RawData52[[#This Row],[2022 5-yr population estimate]])/RawData52[[#This Row],[2022 5-yr population estimate]] -> 0.01968995042 | E47: 8.9 | F47: 4 | G47: 83060

Sheet Place (hidden)
A1: Location | B1: County | C1: 2022 5-yr population estimate | D1: 2023 5-yr population estimate | E1: Pop Change | F1: 2023 Poverty Rate | G1: 2024 Unemployment Rate (County) | H1: 2023 Median Household Income
A2: Abbeville city | B2: Abbeville County | C2: 4892 | D2: 4863 | E2: =(RawData363[[#This Row],[2023 5-yr population estimate]]-RawData363[[#This Row],[2022 5-yr population estimate]])/RawData363[[#This Row],[2022 5-yr population estimate]] -> -0.005928045789 | F2: 23.4 | G2: 4.5 | H2: 38983
A3: Aiken city | B3: Aiken County | C3: 32014 | D3: 32334 | E3: =(RawData363[[#This Row],[2023 5-yr population estimate]]-RawData363[[#This Row],[2022 5-yr population estimate]])/RawData363[[#This Row],[2022 5-yr population estimate]] -> 0.009995626913 | F3: 16.3 | G3: 4.2 | H3: 69837
A4: Alcolu CDP | B4: Clarendon County | C4: 385 | D4: 426 | E4: =(RawData363[[#This Row],[2023 5-yr population estimate]]-RawData363[[#This Row],[2022 5-yr population estimate]])/RawData363[[#This Row],[2022 5-yr population estimate]] -> 0.1064935065 | F4: 44.4 | G4: 5.5 | H4: 41917
A5: Allendale town | B5: Allendale County | C5: 2702 | D5: 2595 | E5: =(RawData363[[#This Row],[2023 5-yr population estimate]]-RawData363[[#This Row],[2022 5-yr population estimate]])/RawData363[[#This Row],[2022 5-yr population estimate]] -> -0.03960029608 | F5: 42.8 | G5: 6.3 | H5: 25250
A6: Anderson city | B6: Anderson County | C6: 29345 | D6: 29563 | E6: =(RawData363[[#This Row],[2023 5-yr population estimate]]-RawData363[[#This Row],[2022 5-yr population estimate]])/RawData363[[#This Row],[2022 5-yr population estimate]] -> 0.00742886352 | F6: 22.3 | G6: 3.8 | H6: 44321
A7: Andrews town | B7: Williamsburg County | C7: 3617 | D7: 2558 | E7: =(RawData363[[#This Row],[2023 5-yr population estimate]]-RawData363[[#This Row],[2022 5-yr population estimate]])/RawData363[[#This Row],[2022 5-yr population estimate]] -> -0.2927840752 | F7: 30.2 | G7: 6.6 | H7: 53611
A8: Antreville CDP | B8: Abbeville County | C8: 286 | D8: 253 | E8: =(RawData363[[#This Row],[2023 5-yr population estimate]]-RawData363[[#This Row],[2022 5-yr population estimate]])/RawData363[[#This Row],[2022 5-yr population estimate]] -> -0.1153846154 | F8: 24.1 | G8: 4.5 | H8: 136250
A9: Arcadia CDP | B9: Spartanburg County | C9: 2846 | D9: 2724 | E9: =(RawData363[[#This Row],[2023 5-yr population estimate]]-RawData363[[#This Row],[2022 5-yr population estimate]])/RawData363[[#This Row],[2022 5-yr population estimate]] -> -0.04286718201 | F9: 27.8 | G9: 4.2 | H9: 37574
A10: Arcadia Lakes town | B10: Richland County | C10: 871 | D10: 843 | E10: =(RawData363[[#This Row],[2023 5-yr population estimate]]-RawData363[[#This Row],[2022 5-yr population estimate]])/RawData363[[#This Row],[2022 5-yr population estimate]] -> -0.03214695752 | F10: 2.8 | G10: 4.3 | H10: 96000
A11: Arial CDP | B11: Pickens County | C11: 1750 | D11: 2024 | E11: =(RawData363[[#This Row],[2023 5-yr population estimate]]-RawData363[[#This Row],[2022 5-yr population estimate]])/RawData363[[#This Row],[2022 5-yr population estimate]] -> 0.1565714286 | F11: 10.5 | G11: 4 | H11: 50132
A12: Atlantic Beach town | B12: Horry County | C12: 332 | D12: 283 | E12: =(RawData363[[#This Row],[2023 5-yr population estimate]]-RawData363[[#This Row],[2022 5-yr population estimate]])/RawData363[[#This Row],[2022 5-yr population estimate]] -> -0.1475903614 | F12: 35.3 | G12: 4.7 | H12: 40000
A13: Awendaw town | B13: Charleston County | C13: 1548 | D13: 1574 | E13: =(RawData363[[#This Row],[2023 5-yr population estimate]]-RawData363[[#This Row],[2022 5-yr population estimate]])/RawData363[[#This Row],[2022 5-yr population estimate]] -> 0.01679586563 | F13: 15.9 | G13: 3.4 | H13: 70781
A14: Aynor town | B14: Horry County | C14: 989 | D14: 1077 | E14: =(RawData363[[#This Row],[2023 5-yr population estimate]]-RawData363[[#This Row],[2022 5-yr population estimate]])/RawData363[[#This Row],[2022 5-yr population estimate]] -> 0.08897876643 | F14: 8.7 | G14: 4.7 | H14: 70972
A15: Bamberg town | B15: Bamberg County | C15: 3074 | D15: 3036 | E15: =(RawData363[[#This Row],[2023 5-yr population estimate]]-RawData363[[#This Row],[2022 5-yr population estimate]])/RawData363[[#This Row],[2022 5-yr population estimate]] -> -0.01236174366 | F15: 31.9 | G15: 6.2 | H15: 27614
A16: Barnwell city | B16: Barnwell County | C16: 4643 | D16: 4616 | E16: =(RawData363[[#This Row],[2023 5-yr population estimate]]-RawData363[[#This Row],[2022 5-yr population estimate]])/RawData363[[#This Row],[2022 5-yr population estimate]] -> -0.005815205686 | F16: 33.1 | G16: 5.6 | H16: 43239
A17: Batesburg-Leesville town | B17: Saluda County | C17: 5004 | D17: 4935 | E17: =(RawData363[[#This Row],[2023 5-yr population estimate]]-RawData363[[#This Row],[2022 5-yr population estimate]])/RawData363[[#This Row],[2022 5-yr population estimate]] -> -0.01378896882 | F17: 18.4 | G17: 3.6 | H17: 53102
A18: Beaufort city | B18: Beaufort County | C18: 13582 | D18: 13660 | E18: =(RawData363[[#This Row],[2023 5-yr population estimate]]-RawData363[[#This Row],[2022 5-yr population estimate]])/RawData363[[#This Row],[2022 5-yr population estimate]] -> 0.005742895008 | F18: 18 | G18: 3.8 | H18: 59454
A19: Belton city | B19: Anderson County | C19: 4357 | D19: 4405 | E19: =(RawData363[[#This Row],[2023 5-yr population estimate]]-RawData363[[#This Row],[2022 5-yr population estimate]])/RawData363[[#This Row],[2022 5-yr population estimate]] -> 0.01101675465 | F19: 19.2 | G19: 3.8 | H19: 48164
A20: Belvedere CDP | B20: Aiken County | C20: 5786 | D20: 5458 | E20: =(RawData363[[#This Row],[2023 5-yr population estimate]]-RawData363[[#This Row],[2022 5-yr population estimate]])/RawData363[[#This Row],[2022 5-yr population estimate]] -> -0.05668855859 | F20: 16 | G20: 4.2 | H20: 57933
A21: Bennettsville city | B21: Marlboro County | C21: 6975 | D21: 6798 | E21: =(RawData363[[#This Row],[2023 5-yr population estimate]]-RawData363[[#This Row],[2022 5-yr population estimate]])/RawData363[[#This Row],[2022 5-yr population estimate]] -> -0.02537634409 | F21: 23.5 | G21: 7.2 | H21: 40889
A22: Berea CDP | B22: Pickens County | C22: 16184 | D22: 16642 | E22: =(RawData363[[#This Row],[2023 5-yr population estimate]]-RawData363[[#This Row],[2022 5-yr population estimate]])/RawData363[[#This Row],[2022 5-yr population estimate]] -> 0.02829955512 | F22: 22 | G22: 4 | H22: 48104
A23: Bethune town | B23: Kershaw County | C23: 454 | D23: 421 | E23: =(RawData363[[#This Row],[2023 5-yr population estimate]]-RawData363[[#This Row],[2022 5-yr population estimate]])/RawData363[[#This Row],[2022 5-yr population estimate]] -> -0.07268722467 | F23: 35.2 | G23: 4.1 | H23: 42656
A24: Bishopville city | B24: Lee County | C24: 2986 | D24: 2958 | E24: =(RawData363[[#This Row],[2023 5-yr population estimate]]-RawData363[[#This Row],[2022 5-yr population estimate]])/RawData363[[#This Row],[2022 5-yr population estimate]] -> -0.009377093101 | F24: 29 | G24: 6.3 | H24: 44015
A25: Blacksburg town | B25: Cherokee County | C25: 2115 | D25: 2158 | E25: =(RawData363[[#This Row],[2023 5-yr population estimate]]-RawData363[[#This Row],[2022 5-yr population estimate]])/RawData363[[#This Row],[2022 5-yr population estimate]] -> 0.02033096927 | F25: 33.2 | G25: 5.7 | H25: 33500
A26: Blackville town | B26: Barnwell County | C26: 2034 | D26: 1778 | E26: =(RawData363[[#This Row],[2023 5-yr population estimate]]-RawData363[[#This Row],[2022 5-yr population estimate]])/RawData363[[#This Row],[2022 5-yr population estimate]] -> -0.1258603736 | F26: 28.2 | G26: 5.6 | H26: 26100
A27: Blenheim town | B27: Marlboro County | C27: 63 | D27: 46 | E27: =(RawData363[[#This Row],[2023 5-yr population estimate]]-RawData363[[#This Row],[2022 5-yr population estimate]])/RawData363[[#This Row],[2022 5-yr population estimate]] -> -0.2698412698 | F27: 11.6 | G27: 7.2 | H27: 66667
A28: Bluffton town | B28: Beaufort County | C28: 29375 | D28: 31323 | E28: =(RawData363[[#This Row],[2023 5-yr population estimate]]-RawData363[[#This Row],[2022 5-yr population estimate]])/RawData363[[#This Row],[2022 5-yr population estimate]] -> 0.06631489362 | F28: 4.8 | G28: 3.8 | H28: 105463
A29: Blythewood town | B29: Fairfield County | C29: 4890 | D29: 5309 | E29: =(RawData363[[#This Row],[2023 5-yr population estimate]]-RawData363[[#This Row],[2022 5-yr population estimate]])/RawData363[[#This Row],[2022 5-yr population estimate]] -> 0.08568507157 | F29: 3.6 | G29: 5 | H29: 105583
A30: Boiling Springs CDP | B30: Spartanburg County | C30: 11191 | D30: 12609 | E30: =(RawData363[[#This Row],[2023 5-yr population estimate]]-RawData363[[#This Row],[2022 5-yr population estimate]])/RawData363[[#This Row],[2022 5-yr population estimate]] -> 0.1267089626 | F30: 9.2 | G30: 4.2 | H30: 79798
A31: Bonneau Beach CDP | B31: Berkeley County | C31: 1500 | D31: 1543 | E31: =(RawData363[[#This Row],[2023 5-yr population estimate]]-RawData363[[#This Row],[2022 5-yr population estimate]])/RawData363[[#This Row],[2022 5-yr population estimate]] -> 0.02866666667 | F31: 16.9 | G31: 3.7 | H31: 57561
A32: Bonneau town | B32: Berkeley County | C32: 582 | D32: 536 | E32: =(RawData363[[#This Row],[2023 5-yr population estimate]]-RawData363[[#This Row],[2022 5-yr population estimate]])/RawData363[[#This Row],[2022 5-yr population estimate]] -> -0.07903780069 | F32: 33.2 | G32: 3.7 | H32: 58750
A33: Bowman town | B33: Orangeburg County | C33: 652 | D33: 789 | E33: =(RawData363[[#This Row],[2023 5-yr population estimate]]-RawData363[[#This Row],[2022 5-yr population estimate]])/RawData363[[#This Row],[2022 5-yr population estimate]] -> 0.2101226994 | F33: 48.9 | G33: 6 | H33: 27500
A34: Boykin CDP | B34: Kershaw County | C34: 109 | D34: 134 | E34: =(RawData363[[#This Row],[2023 5-yr population estimate]]-RawData363[[#This Row],[2022 5-yr population estimate]])/RawData363[[#This Row],[2022 5-yr population estimate]] -> 0.2293577982 | F34: 14.1 | G34: 4.1 | H34: 134219
A35: Bradley CDP | B35: Greenwood County | C35: 163 | D35: 207 | E35: =(RawData363[[#This Row],[2023 5-yr population estimate]]-RawData363[[#This Row],[2022 5-yr population estimate]])/RawData363[[#This Row],[2022 5-yr population estimate]] -> 0.2699386503 | F35: 78.3 | G35: 5.2 | H35: 50635
A36: Branchville town | B36: Orangeburg County | C36: 1301 | D36: 1169 | E36: =(RawData363[[#This Row],[2023 5-yr population estimate]]-RawData363[[#This Row],[2022 5-yr population estimate]])/RawData363[[#This Row],[2022 5-yr population estimate]] -> -0.1014604151 | F36: 15.6 | G36: 6 | H36: 40144
A37: Briarcliffe Acres town | B37: Horry County | C37: 568 | D37: 499 | E37: =(RawData363[[#This Row],[2023 5-yr population estimate]]-RawData363[[#This Row],[2022 5-yr population estimate]])/RawData363[[#This Row],[2022 5-yr population estimate]] -> -0.1214788732 | F37: 8.4 | G37: 4.7 | H37: 182083
A38: Brookdale CDP | B38: Orangeburg County | C38: 4069 | D38: 4061 | E38: =(RawData363[[#This Row],[2023 5-yr population estimate]]-RawData363[[#This Row],[2022 5-yr population estimate]])/RawData363[[#This Row],[2022 5-yr population estimate]] -> -0.001966085033 | F38: 36.1 | G38: 6 | H38: 34279
A39: Brunson town | B39: Hampton County | C39: 525 | D39: 457 | E39: =(RawData363[[#This Row],[2023 5-yr population estimate]]-RawData363[[#This Row],[2022 5-yr population estimate]])/RawData363[[#This Row],[2022 5-yr population estimate]] -> -0.1295238095 | F39: 24.3 | G39: 4 | H39: 37391
A40: Bucksport CDP | B40: Horry County | C40: 744 | D40: 583 | E40: =(RawData363[[#This Row],[2023 5-yr population estimate]]-RawData363[[#This Row],[2022 5-yr population estimate]])/RawData363[[#This Row],[2022 5-yr population estimate]] -> -0.2163978495 | F40: 13.2 | G40: 4.7 | H40: 64623
A41: Buffalo CDP | B41: Union County | C41: 1159 | D41: 1232 | E41: =(RawData363[[#This Row],[2023 5-yr population estimate]]-RawData363[[#This Row],[2022 5-yr population estimate]])/RawData363[[#This Row],[2022 5-yr population estimate]] -> 0.06298533218 | F41: 43.6 | G41: 5.5 | H41: 21831
A42: Burnettown town | B42: Aiken County | C42: 3052 | D42: 3090 | E42: =(RawData363[[#This Row],[2023 5-yr population estimate]]-RawData363[[#This Row],[2022 5-yr population estimate]])/RawData363[[#This Row],[2022 5-yr population estimate]] -> 0.0124508519 | F42: 26.7 | G42: 4.2 | H42: 38371
A43: Burton CDP | B43: Beaufort County | C43: 7603 | D43: 7132 | E43: =(RawData363[[#This Row],[2023 5-yr population estimate]]-RawData363[[#This Row],[2022 5-yr population estimate]])/RawData363[[#This Row],[2022 5-yr population estimate]] -> -0.06194923057 | F43: 10.6 | G43: 3.8 | H43: 57315
A44: Calhoun Falls town | B44: Abbeville County | C44: 1939 | D44: 1897 | E44: =(RawData363[[#This Row],[2023 5-yr population estimate]]-RawData363[[#This Row],[2022 5-yr population estimate]])/RawData363[[#This Row],[2022 5-yr population estimate]] -> -0.02166064982 | F44: 15.6 | G44: 4.5 | H44: 35527
A45: Camden city | B45: Kershaw County | C45: 7834 | D45: 8025 | E45: =(RawData363[[#This Row],[2023 5-yr population estimate]]-RawData363[[#This Row],[2022 5-yr population estimate]])/RawData363[[#This Row],[2022 5-yr population estimate]] -> 0.02438090375 | F45: 16.7 | G45: 4.1 | H45: 53289
A46: Cameron town | B46: Calhoun County | C46: 486 | D46: 451 | E46: =(RawData363[[#This Row],[2023 5-yr population estimate]]-RawData363[[#This Row],[2022 5-yr population estimate]])/RawData363[[#This Row],[2022 5-yr population estimate]] -> -0.07201646091 | F46: 15.3 | G46: 4.6 | H46: 72500
A47: Campobello town | B47: Spartanburg County | C47: 866 | D47: 888 | E47: =(RawData363[[#This Row],[2023 5-yr population estimate]]-RawData363[[#This Row],[2022 5-yr population estimate]])/RawData363[[#This Row],[2022 5-yr population estimate]] -> 0.02540415704 | F47: 8.5 | G47: 4.2 | H47: 84063
A48: Cane Savannah CDP | B48: Sumter County | C48: 1534 | D48: 1497 | E48: =(RawData363[[#This Row],[2023 5-yr population estimate]]-RawData363[[#This Row],[2022 5-yr population estimate]])/RawData363[[#This Row],[2022 5-yr population estimate]] -> -0.02411994785 | F48: 5.5 | G48: 5.2 | H48: 55990
A49: Carlisle town | B49: Union County | C49: 526 | D49: 438 | E49: =(RawData363[[#This Row],[2023 5-yr population estimate]]-RawData363[[#This Row],[2022 5-yr population estimate]])/RawData363[[#This Row],[2022 5-yr population estimate]] -> -0.1673003802 | F49: 6.4 | G49: 5.5 | H49: 59750
A50: Catawba CDP | B50: Chester County | C50: 1439 | D50: 1225 | E50: =(RawData363[[#This Row],[2023 5-yr population estimate]]-RawData363[[#This Row],[2022 5-yr population estimate]])/RawData363[[#This Row],[2022 5-yr population estimate]] -> -0.148714385 | F50: 17.3 | G50: 5.5 | H50: 55385
A51: Cayce city | B51: Lexington County | C51: 13755 | D51: 13718 | E51: =(RawData363[[#This Row],[2023 5-yr population estimate]]-RawData363[[#This Row],[2022 5-yr population estimate]])/RawData363[[#This Row],[2022 5-yr population estimate]] -> -0.002689930934 | F51: 17.8 | G51: 3.6 | H51: 58095
A52: Centerville CDP | B52: Anderson County | C52: 7217 | D52: 6860 | E52: =(RawData363[[#This Row],[2023 5-yr population estimate]]-RawData363[[#This Row],[2022 5-yr population estimate]])/RawData363[[#This Row],[2022 5-yr population estimate]] -> -0.04946653734 | F52: 7.3 | G52: 3.8 | H52: 66912
A53: Central Pacolet town | B53: Spartanburg County | C53: 194 | D53: 255 | E53: =(RawData363[[#This Row],[2023 5-yr population estimate]]-RawData363[[#This Row],[2022 5-yr population estimate]])/RawData363[[#This Row],[2022 5-yr population estimate]] -> 0.3144329897 | F53: 21.2 | G53: 4.2 | H53: 29500
A54: Central town | B54: Pickens County | C54: 5272 | D54: 5299 | E54: =(RawData363[[#This Row],[2023 5-yr population estimate]]-RawData363[[#This Row],[2022 5-yr population estimate]])/RawData363[[#This Row],[2022 5-yr population estimate]] -> 0.005121396055 | F54: 31.4 | G54: 4 | H54: 58262
A55: Chapin town | B55: Lexington County | C55: 1543 | D55: 1410 | E55: =(RawData363[[#This Row],[2023 5-yr population estimate]]-RawData363[[#This Row],[2022 5-yr population estimate]])/RawData363[[#This Row],[2022 5-yr population estimate]] -> -0.08619572262 | F55: 5.2 | G55: 3.6 | H55: 77632
A56: Charleston city | B56: Dorchester County | C56: 149960 | D56: 152014 | E56: =(RawData363[[#This Row],[2023 5-yr population estimate]]-RawData363[[#This Row],[2022 5-yr population estimate]])/RawData363[[#This Row],[2022 5-yr population estimate]] -> 0.01369698586 | F56: 12 | G56: 3.7 | H56: 90038
A57: Cheraw town | B57: Chesterfield County | C57: 5056 | D57: 5024 | E57: =(RawData363[[#This Row],[2023 5-yr population estimate]]-RawData363[[#This Row],[2022 5-yr population estimate]])/RawData363[[#This Row],[2022 5-yr population estimate]] -> -0.006329113924 | F57: 35.4 | G57: 4.7 | H57: 27275
A58: Cherryvale CDP | B58: Sumter County | C58: 2843 | D58: 3136 | E58: =(RawData363[[#This Row],[2023 5-yr population estimate]]-RawData363[[#This Row],[2022 5-yr population estimate]])/RawData363[[#This Row],[2022 5-yr population estimate]] -> 0.1030601477 | F58: 19.2 | G58: 5.2 | H58: 41563
A59: Chesnee city | B59: Spartanburg County | C59: 597 | D59: 804 | E59: =(RawData363[[#This Row],[2023 5-yr population estimate]]-RawData363[[#This Row],[2022 5-yr population estimate]])/RawData363[[#This Row],[2022 5-yr population estimate]] -> 0.3467336683 | F59: 31.8 | G59: 4.2 | H59: 39375
A60: Chester city | B60: Chester County | C60: 5260 | D60: 5241 | E60: =(RawData363[[#This Row],[2023 5-yr population estimate]]-RawData363[[#This Row],[2022 5-yr population estimate]])/RawData363[[#This Row],[2022 5-yr population estimate]] -> -0.0036121673 | F60: 25 | G60: 5.5 | H60: 41231
A61: Chesterfield town | B61: Chesterfield County | C61: 1424 | D61: 1497 | E61: =(RawData363[[#This Row],[2023 5-yr population estimate]]-RawData363[[#This Row],[2022 5-yr population estimate]])/RawData363[[#This Row],[2022 5-yr population estimate]] -> 0.05126404494 | F61: 23.4 | G61: 4.7 | H61: 48167
A62: City View CDP | B62: Greenville County | C62: 1696 | D62: 1172 | E62: =(RawData363[[#This Row],[2023 5-yr population estimate]]-RawData363[[#This Row],[2022 5-yr population estimate]])/RawData363[[#This Row],[2022 5-yr population estimate]] -> -0.3089622642 | F62: 45.5 | G62: 3.7 | H62: 37625
A63: Clarks Hill CDP | B63: McCormick County | C63: 78 | D63: 125 | E63: =(RawData363[[#This Row],[2023 5-yr population estimate]]-RawData363[[#This Row],[2022 5-yr population estimate]])/RawData363[[#This Row],[2022 5-yr population estimate]] -> 0.6025641026 | F63: 18.4 | G63: 5.1 | H63: 40714
A64: Clearwater CDP | B64: Aiken County | C64: 3403 | D64: 3124 | E64: =(RawData363[[#This Row],[2023 5-yr population estimate]]-RawData363[[#This Row],[2022 5-yr population estimate]])/RawData363[[#This Row],[2022 5-yr population estimate]] -> -0.08198648252 | F64: 14.4 | G64: 4.2 | H64: 50669
A65: Clemson city | B65: Anderson County | C65: 17557 | D65: 17759 | E65: =(RawData363[[#This Row],[2023 5-yr population estimate]]-RawData363[[#This Row],[2022 5-yr population estimate]])/RawData363[[#This Row],[2022 5-yr population estimate]] -> 0.01150538247 | F65: 36.1 | G65: 3.8 | H65: 49713
A66: Clifton CDP | B66: Spartanburg County | C66: 962 | D66: 861 | E66: =(RawData363[[#This Row],[2023 5-yr population estimate]]-RawData363[[#This Row],[2022 5-yr population estimate]])/RawData363[[#This Row],[2022 5-yr population estimate]] -> -0.104989605 | F66: 45.8 | G66: 4.2 | H66: 48357
A67: Clinton city | B67: Laurens County | C67: 7624 | D67: 7624 | E67: =(RawData363[[#This Row],[2023 5-yr population estimate]]-RawData363[[#This Row],[2022 5-yr population estimate]])/RawData363[[#This Row],[2022 5-yr population estimate]] -> 0 | F67: 26.5 | G67: 4.4 | H67: 40372
A68: Clio town | B68: Marlboro County | C68: 679 | D68: 591 | E68: =(RawData363[[#This Row],[2023 5-yr population estimate]]-RawData363[[#This Row],[2022 5-yr population estimate]])/RawData363[[#This Row],[2022 5-yr population estimate]] -> -0.1296023564 | F68: 24.9 | G68: 7.2 | H68: 28875
A69: Clover town | B69: York County | C69: 6800 | D69: 7013 | E69: =(RawData363[[#This Row],[2023 5-yr population estimate]]-RawData363[[#This Row],[2022 5-yr population estimate]])/RawData363[[#This Row],[2022 5-yr population estimate]] -> 0.03132352941 | F69: 13.9 | G69: 4 | H69: 66992
A70: Cokesbury CDP | B70: Greenwood County | C70: 376 | D70: 341 | E70: =(RawData363[[#This Row],[2023 5-yr population estimate]]-RawData363[[#This Row],[2022 5-yr population estimate]])/RawData363[[#This Row],[2022 5-yr population estimate]] -> -0.09308510638 | F70: 17.1 | G70: 5.2 | H70: 50635
A71: Columbia city | B71: Lexington County | C71: 136754 | D71: 138019 | E71: =(RawData363[[#This Row],[2023 5-yr population estimate]]-RawData363[[#This Row],[2022 5-yr population estimate]])/RawData363[[#This Row],[2022 5-yr population estimate]] -> 0.009250186466 | F71: 23.3 | G71: 3.6 | H71: 55653
A72: Converse CDP | B72: Spartanburg County | C72: 241 | D72: 424 | E72: =(RawData363[[#This Row],[2023 5-yr population estimate]]-RawData363[[#This Row],[2022 5-yr population estimate]])/RawData363[[#This Row],[2022 5-yr population estimate]] -> 0.7593360996 | F72: 12.5 | G72: 4.2 | H72: 50139
A73: Conway city | B73: Horry County | C73: 25121 | D73: 26082 | E73: =(RawData363[[#This Row],[2023 5-yr population estimate]]-RawData363[[#This Row],[2022 5-yr population estimate]])/RawData363[[#This Row],[2022 5-yr population estimate]] -> 0.03825484654 | F73: 20.3 | G73: 4.7 | H73: 54841
A74: Cope town | B74: Orangeburg County | C74: 28 | D74: 27 | E74: =(RawData363[[#This Row],[2023 5-yr population estimate]]-RawData363[[#This Row],[2022 5-yr population estimate]])/RawData363[[#This Row],[2022 5-yr population estimate]] -> -0.03571428571 | F74: 55.6 | G74: 6 | H74: 43214
A75: Cordova town | B75: Orangeburg County | C75: 214 | D75: 160 | E75: =(RawData363[[#This Row],[2023 5-yr population estimate]]-RawData363[[#This Row],[2022 5-yr population estimate]])/RawData363[[#This Row],[2022 5-yr population estimate]] -> -0.2523364486 | F75: 13.8 | G75: 6 | H75: 73750
A76: Coronaca CDP | B76: Greenwood County | C76: 32 | D76: 46 | E76: =(RawData363[[#This Row],[2023 5-yr population estimate]]-RawData363[[#This Row],[2022 5-yr population estimate]])/RawData363[[#This Row],[2022 5-yr population estimate]] -> 0.4375 | F76: 100 | G76: 5.2 | H76: 50635
A77: Cottageville town | B77: Colleton County | C77: 1144 | D77: 1154 | E77: =(RawData363[[#This Row],[2023 5-yr population estimate]]-RawData363[[#This Row],[2022 5-yr population estimate]])/RawData363[[#This Row],[2022 5-yr population estimate]] -> 0.008741258741 | F77: 9.8 | G77: 4.6 | H77: 68750
A78: Coward town | B78: Florence County | C78: 568 | D78: 668 | E78: =(RawData363[[#This Row],[2023 5-yr population estimate]]-RawData363[[#This Row],[2022 5-yr population estimate]])/RawData363[[#This Row],[2022 5-yr population estimate]] -> 0.176056338 | F78: 36.1 | G78: 4.4 | H78: 36250
A79: Cowpens town | B79: Spartanburg County | C79: 1862 | D79: 2031 | E79: =(RawData363[[#This Row],[2023 5-yr population estimate]]-RawData363[[#This Row],[2022 5-yr population estimate]])/RawData363[[#This Row],[2022 5-yr population estimate]] -> 0.09076262084 | F79: 31 | G79: 4.2 | H79: 37168
A80: Cross Anchor CDP | B80: Spartanburg County | C80: 25 | D80: 89 | E80: =(RawData363[[#This Row],[2023 5-yr population estimate]]-RawData363[[#This Row],[2022 5-yr population estimate]])/RawData363[[#This Row],[2022 5-yr population estimate]] -> 2.56 | F80: 28.1 | G80: 4.2 | H80: 64195
A81: Cross Hill town | B81: Laurens County | C81: 522 | D81: 502 | E81: =(RawData363[[#This Row],[2023 5-yr population estimate]]-RawData363[[#This Row],[2022 5-yr population estimate]])/RawData363[[#This Row],[2022 5-yr population estimate]] -> -0.03831417625 | F81: 14.5 | G81: 4.4 | H81: 37083
A82: Dalzell CDP | B82: Sumter County | C82: 3417 | D82: 2949 | E82: =(RawData363[[#This Row],[2023 5-yr population estimate]]-RawData363[[#This Row],[2022 5-yr population estimate]])/RawData363[[#This Row],[2022 5-yr population estimate]] -> -0.1369622476 | F82: 13.3 | G82: 5.2 | H82: 52723
A83: Darlington city | B83: Darlington County | C83: 6172 | D83: 6128 | E83: =(RawData363[[#This Row],[2023 5-yr population estimate]]-RawData363[[#This Row],[2022 5-yr population estimate]])/RawData363[[#This Row],[2022 5-yr population estimate]] -> -0.00712896954 | F83: 33.9 | G83: 4.8 | H83: 31240
A84: Denmark city | B84: Bamberg County | C84: 3156 | D84: 3141 | E84: =(RawData363[[#This Row],[2023 5-yr population estimate]]-RawData363[[#This Row],[2022 5-yr population estimate]])/RawData363[[#This Row],[2022 5-yr population estimate]] -> -0.004752851711 | F84: 26.8 | G84: 6.2 | H84: 33100
A85: Dentsville CDP | B85: Richland County | C85: 16399 | D85: 15396 | E85: =(RawData363[[#This Row],[2023 5-yr population estimate]]-RawData363[[#This Row],[2022 5-yr population estimate]])/RawData363[[#This Row],[2022 5-yr population estimate]] -> -0.06116226599 | F85: 17.1 | G85: 4.3 | H85: 44029
A86: Dillon city | B86: Dillon County | C86: 6454 | D86: 6406 | E86: =(RawData363[[#This Row],[2023 5-yr population estimate]]-RawData363[[#This Row],[2022 5-yr population estimate]])/RawData363[[#This Row],[2022 5-yr population estimate]] -> -0.007437248218 | F86: 38.6 | G86: 6 | H86: 34964
A87: Donalds town | B87: Abbeville County | C87: 374 | D87: 352 | E87: =(RawData363[[#This Row],[2023 5-yr population estimate]]-RawData363[[#This Row],[2022 5-yr population estimate]])/RawData363[[#This Row],[2022 5-yr population estimate]] -> -0.05882352941 | F87: 15.6 | G87: 4.5 | H87: 49643
A88: Due West town | B88: Abbeville County | C88: 1148 | D88: 1185 | E88: =(RawData363[[#This Row],[2023 5-yr population estimate]]-RawData363[[#This Row],[2022 5-yr population estimate]])/RawData363[[#This Row],[2022 5-yr population estimate]] -> 0.03222996516 | F88: 11.2 | G88: 4.5 | H88: 52059
A89: Duncan town | B89: Spartanburg County | C89: 4053 | D89: 4175 | E89: =(RawData363[[#This Row],[2023 5-yr population estimate]]-RawData363[[#This Row],[2022 5-yr population estimate]])/RawData363[[#This Row],[2022 5-yr population estimate]] -> 0.03010115963 | F89: 17.1 | G89: 4.2 | H89: 51596
A90: Dunean CDP | B90: Greenville County | C90: 3427 | D90: 3716 | E90: =(RawData363[[#This Row],[2023 5-yr population estimate]]-RawData363[[#This Row],[2022 5-yr population estimate]])/RawData363[[#This Row],[2022 5-yr population estimate]] -> 0.08433031806 | F90: 16.7 | G90: 3.7 | H90: 50382
A91: Easley city | B91: Anderson County | C91: 23135 | D91: 23942 | E91: =(RawData363[[#This Row],[2023 5-yr population estimate]]-RawData363[[#This Row],[2022 5-yr population estimate]])/RawData363[[#This Row],[2022 5-yr population estimate]] -> 0.0348822131 | F91: 14.3 | G91: 3.8 | H91: 65330
A92: East Gaffney CDP | B92: Cherokee County | C92: 2972 | D92: 3169 | E92: =(RawData363[[#This Row],[2023 5-yr population estimate]]-RawData363[[#This Row],[2022 5-yr population estimate]])/RawData363[[#This Row],[2022 5-yr population estimate]] -> 0.06628532974 | F92: 28.8 | G92: 5.7 | H92: 26314
A93: East Sumter CDP | B93: Sumter County | C93: 789 | D93: 852 | E93: =(RawData363[[#This Row],[2023 5-yr population estimate]]-RawData363[[#This Row],[2022 5-yr population estimate]])/RawData363[[#This Row],[2022 5-yr population estimate]] -> 0.07984790875 | F93: 29.8 | G93: 5.2 | H93: 55990
A94: Eastover town | B94: Richland County | C94: 616 | D94: 566 | E94: =(RawData363[[#This Row],[2023 5-yr population estimate]]-RawData363[[#This Row],[2022 5-yr population estimate]])/RawData363[[#This Row],[2022 5-yr population estimate]] -> -0.08116883117 | F94: 33.3 | G94: 4.3 | H94: 22750
A95: Edgefield town | B95: Edgefield County | C95: 2504 | D95: 3977 | E95: =(RawData363[[#This Row],[2023 5-yr population estimate]]-RawData363[[#This Row],[2022 5-yr population estimate]])/RawData363[[#This Row],[2022 5-yr population estimate]] -> 0.5882587859 | F95: 32.8 | G95: 3.9 | H95: 37500
A96: Edisto Beach town | B96: Charleston County | C96: 884 | D96: 987 | E96: =(RawData363[[#This Row],[2023 5-yr population estimate]]-RawData363[[#This Row],[2022 5-yr population estimate]])/RawData363[[#This Row],[2022 5-yr population estimate]] -> 0.1165158371 | F96: 3.5 | G96: 3.4 | H96: 81250
A97: Edisto CDP | B97: Orangeburg County | C97: 1904 | D97: 2261 | E97: =(RawData363[[#This Row],[2023 5-yr population estimate]]-RawData363[[#This Row],[2022 5-yr population estimate]])/RawData363[[#This Row],[2022 5-yr population estimate]] -> 0.1875 | F97: 23.8 | G97: 6 | H97: 46644
A98: Ehrhardt town | B98: Bamberg County | C98: 462 | D98: 416 | E98: =(RawData363[[#This Row],[2023 5-yr population estimate]]-RawData363[[#This Row],[2022 5-yr population estimate]])/RawData363[[#This Row],[2022 5-yr population estimate]] -> -0.09956709957 | F98: 9.7 | G98: 6.2 | H98: 33984
A99: Elgin CDP | B99: Lancaster County | C99: 2882 | D99: 2258 | E99: =(RawData363[[#This Row],[2023 5-yr population estimate]]-RawData363[[#This Row],[2022 5-yr population estimate]])/RawData363[[#This Row],[2022 5-yr population estimate]] -> -0.2165163081 | F99: 4.4 | G99: 4.3 | H99: 74167
A100: Elgin town | B100: Kershaw County | C100: 2065 | D100: 2176 | E100: =(RawData363[[#This Row],[2023 5-yr population estimate]]-RawData363[[#This Row],[2022 5-yr population estimate]])/RawData363[[#This Row],[2022 5-yr population estimate]] -> 0.05375302663 | F100: 4.8 | G100: 4.1 | H100: 84219
A101: Elko town | B101: Barnwell County | C101: 213 | D101: 198 | E101: =(RawData363[[#This Row],[2023 5-yr population estimate]]-RawData363[[#This Row],[2022 5-yr population estimate]])/RawData363[[#This Row],[2022 5-yr population estimate]] -> -0.07042253521 | F101: 17.7 | G101: 5.6 | H101: 41023
A102: Elloree town | B102: Orangeburg County | C102: 993 | D102: 1005 | E102: =(RawData363[[#This Row],[2023 5-yr population estimate]]-RawData363[[#This Row],[2022 5-yr population estimate]])/RawData363[[#This Row],[2022 5-yr population estimate]] -> 0.01208459215 | F102: 20.1 | G102: 6 | H102: 33750
A103: Enoree CDP | B103: Laurens County | C103: 441 | D103: 472 | E103: =(RawData363[[#This Row],[2023 5-yr population estimate]]-RawData363[[#This Row],[2022 5-yr population estimate]])/RawData363[[#This Row],[2022 5-yr population estimate]] -> 0.07029478458 | F103: 42.6 | G103: 4.4 | H103: 55517
A104: Estill town | B104: Hampton County | C104: 2230 | D104: 2287 | E104: =(RawData363[[#This Row],[2023 5-yr population estimate]]-RawData363[[#This Row],[2022 5-yr population estimate]])/RawData363[[#This Row],[2022 5-yr population estimate]] -> 0.02556053812 | F104: 27.6 | G104: 4 | H104: 36547
A105: Eureka Mill CDP | B105: Chester County | C105: 1889 | D105: 1732 | E105: =(RawData363[[#This Row],[2023 5-yr population estimate]]-RawData363[[#This Row],[2022 5-yr population estimate]])/RawData363[[#This Row],[2022 5-yr population estimate]] -> -0.08311275807 | F105: 40.9 | G105: 5.5 | H105: 35980
A106: Eutawville town | B106: Orangeburg County | C106: 396 | D106: 530 | E106: =(RawData363[[#This Row],[2023 5-yr population estimate]]-RawData363[[#This Row],[2022 5-yr population estimate]])/RawData363[[#This Row],[2022 5-yr population estimate]] -> 0.3383838384 | F106: 37.9 | G106: 6 | H106: 43214
A107: Fair Play CDP | B107: Anderson County | C107: 574 | D107: 578 | E107: =(RawData363[[#This Row],[2023 5-yr population estimate]]-RawData363[[#This Row],[2022 5-yr population estimate]])/RawData363[[#This Row],[2022 5-yr population estimate]] -> 0.006968641115 | F107: 28.5 | G107: 3.8 | H107: 113466
A108: Fairfax town | B108: Hampton County | C108: 2035 | D108: 2037 | E108: =(RawData363[[#This Row],[2023 5-yr population estimate]]-RawData363[[#This Row],[2022 5-yr population estimate]])/RawData363[[#This Row],[2022 5-yr population estimate]] -> 0.0009828009828 | F108: 23.7 | G108: 4 | H108: 41328
A109: Fairforest CDP | B109: Spartanburg County | C109: 1626 | D109: 1711 | E109: =(RawData363[[#This Row],[2023 5-yr population estimate]]-RawData363[[#This Row],[2022 5-yr population estimate]])/RawData363[[#This Row],[2022 5-yr population estimate]] -> 0.05227552276 | F109: 22 | G109: 4.2 | H109: 60199
A110: Fingerville CDP | B110: Spartanburg County | C110: 99 | D110: 238 | E110: =(RawData363[[#This Row],[2023 5-yr population estimate]]-RawData363[[#This Row],[2022 5-yr population estimate]])/RawData363[[#This Row],[2022 5-yr population estimate]] -> 1.404040404 | F110: 90.8 | G110: 4.2 | H110: 64195
A111: Five Forks CDP | B111: Greenville County | C111: 18592 | D111: 19093 | E111: =(RawData363[[#This Row],[2023 5-yr population estimate]]-RawData363[[#This Row],[2022 5-yr population estimate]])/RawData363[[#This Row],[2022 5-yr population estimate]] -> 0.02694707401 | F111: 2.1 | G111: 3.7 | H111: 140668
A112: Florence city | B112: Florence County | C112: 39931 | D112: 40205 | E112: =(RawData363[[#This Row],[2023 5-yr population estimate]]-RawData363[[#This Row],[2022 5-yr population estimate]])/RawData363[[#This Row],[2022 5-yr population estimate]] -> 0.006861836668 | F112: 18.1 | G112: 4.4 | H112: 56433
A113: Folly Beach city | B113: Charleston County | C113: 1020 | D113: 958 | E113: =(RawData363[[#This Row],[2023 5-yr population estimate]]-RawData363[[#This Row],[2022 5-yr population estimate]])/RawData363[[#This Row],[2022 5-yr population estimate]] -> -0.06078431373 | F113: 8.8 | G113: 3.4 | H113: 97813
A114: Forest Acres city | B114: Richland County | C114: 10514 | D114: 10491 | E114: =(RawData363[[#This Row],[2023 5-yr population estimate]]-RawData363[[#This Row],[2022 5-yr population estimate]])/RawData363[[#This Row],[2022 5-yr population estimate]] -> -0.002187559445 | F114: 8.2 | G114: 4.3 | H114: 76417
A115: Forestbrook CDP | B115: Horry County | C115: 7414 | D115: 7450 | E115: =(RawData363[[#This Row],[2023 5-yr population estimate]]-RawData363[[#This Row],[2022 5-yr population estimate]])/RawData363[[#This Row],[2022 5-yr population estimate]] -> 0.004855678446 | F115: 6 | G115: 4.7 | H115: 77791
A116: Fort Lawn town | B116: Chester County | C116: 1149 | D116: 1144 | E116: =(RawData363[[#This Row],[2023 5-yr population estimate]]-RawData363[[#This Row],[2022 5-yr population estimate]])/RawData363[[#This Row],[2022 5-yr population estimate]] -> -0.004351610096 | F116: 13.8 | G116: 5.5 | H116: 54141
A117: Fort Mill town | B117: Lancaster County | C117: 26022 | D117: 28281 | E117: =(RawData363[[#This Row],[2023 5-yr population estimate]]-RawData363[[#This Row],[2022 5-yr population estimate]])/RawData363[[#This Row],[2022 5-yr population estimate]] -> 0.08681115979 | F117: 3.7 | G117: 4.3 | H117: 127537
A118: Fountain Inn city | B118: Laurens County | C118: 10675 | D118: 11307 | E118: =(RawData363[[#This Row],[2023 5-yr population estimate]]-RawData363[[#This Row],[2022 5-yr population estimate]])/RawData363[[#This Row],[2022 5-yr population estimate]] -> 0.05920374707 | F118: 12.9 | G118: 4.4 | H118: 72021
A119: Furman town | B119: Hampton County | C119: 559 | D119: 747 | E119: =(RawData363[[#This Row],[2023 5-yr population estimate]]-RawData363[[#This Row],[2022 5-yr population estimate]])/RawData363[[#This Row],[2022 5-yr population estimate]] -> 0.3363148479 | F119: 4.7 | G119: 4 | H119: 57708
A120: Gadsden CDP | B120: Richland County | C120: 1373 | D120: 1131 | E120: =(RawData363[[#This Row],[2023 5-yr population estimate]]-RawData363[[#This Row],[2022 5-yr population estimate]])/RawData363[[#This Row],[2022 5-yr population estimate]] -> -0.1762563729 | F120: 24 | G120: 4.3 | H120: 54464
A121: Gaffney city | B121: Cherokee County | C121: 12651 | D121: 12612 | E121: =(RawData363[[#This Row],[2023 5-yr population estimate]]-RawData363[[#This Row],[2022 5-yr population estimate]])/RawData363[[#This Row],[2022 5-yr population estimate]] -> -0.003082760256 | F121: 24.8 | G121: 5.7 | H121: 41214
A122: Gantt CDP | B122: Greenville County | C122: 14276 | D122: 15057 | E122: =(RawData363[[#This Row],[2023 5-yr population estimate]]-RawData363[[#This Row],[2022 5-yr population estimate]])/RawData363[[#This Row],[2022 5-yr population estimate]] -> 0.0547072009 | F122: 25.5 | G122: 3.7 | H122: 47265
A123: Garden City CDP | B123: Horry County | C123: 10885 | D123: 10820 | E123: =(RawData363[[#This Row],[2023 5-yr population estimate]]-RawData363[[#This Row],[2022 5-yr population estimate]])/RawData363[[#This Row],[2022 5-yr population estimate]] -> -0.005971520441 | F123: 14.2 | G123: 4.7 | H123: 50027
A124: Gaston town | B124: Lexington County | C124: 1991 | D124: 2026 | E124: =(RawData363[[#This Row],[2023 5-yr population estimate]]-RawData363[[#This Row],[2022 5-yr population estimate]])/RawData363[[#This Row],[2022 5-yr population estimate]] -> 0.01757910598 | F124: 24.3 | G124: 3.6 | H124: 59500
A125: Gayle Mill CDP | B125: Chester County | C125: 1082 | D125: 1119 | E125: =(RawData363[[#This Row],[2023 5-yr population estimate]]-RawData363[[#This Row],[2022 5-yr population estimate]])/RawData363[[#This Row],[2022 5-yr population estimate]] -> 0.03419593346 | F125: 32 | G125: 5.5 | H125: 51216
A126: Georgetown city | B126: Georgetown County | C126: 8465 | D126: 8511 | E126: =(RawData363[[#This Row],[2023 5-yr population estimate]]-RawData363[[#This Row],[2022 5-yr population estimate]])/RawData363[[#This Row],[2022 5-yr population estimate]] -> 0.005434140579 | F126: 15.8 | G126: 4.6 | H126: 57704
A127: Gifford town | B127: Hampton County | C127: 201 | D127: 200 | E127: =(RawData363[[#This Row],[2023 5-yr population estimate]]-RawData363[[#This Row],[2022 5-yr population estimate]])/RawData363[[#This Row],[2022 5-yr population estimate]] -> -0.004975124378 | F127: 17.5 | G127: 4 | H127: 29583
A128: Gilbert town | B128: Lexington County | C128: 563 | D128: 563 | E128: =(RawData363[[#This Row],[2023 5-yr population estimate]]-RawData363[[#This Row],[2022 5-yr population estimate]])/RawData363[[#This Row],[2022 5-yr population estimate]] -> 0 | F128: 5.3 | G128: 3.6 | H128: 76364
A129: Glendale CDP | B129: Spartanburg County | C129: 254 | D129: 173 | E129: =(RawData363[[#This Row],[2023 5-yr population estimate]]-RawData363[[#This Row],[2022 5-yr population estimate]])/RawData363[[#This Row],[2022 5-yr population estimate]] -> -0.3188976378 | F129: 52 | G129: 4.2 | H129: 64195
A130: Gloverville CDP | B130: Aiken County | C130: 3099 | D130: 2418 | E130: =(RawData363[[#This Row],[2023 5-yr population estimate]]-RawData363[[#This Row],[2022 5-yr population estimate]])/RawData363[[#This Row],[2022 5-yr population estimate]] -> -0.2197483059 | F130: 10.2 | G130: 4.2 | H130: 51691
A131: Golden Grove CDP | B131: Anderson County | C131: 3282 | D131: 3084 | E131: =(RawData363[[#This Row],[2023 5-yr population estimate]]-RawData363[[#This Row],[2022 5-yr population estimate]])/RawData363[[#This Row],[2022 5-yr population estimate]] -> -0.06032906764 | F131: 8.5 | G131: 3.8 | H131: 71694
A132: Goose Creek city | B132: Berkeley County | C132: 45858 | D132: 46964 | E132: =(RawData363[[#This Row],[2023 5-yr population estimate]]-RawData363[[#This Row],[2022 5-yr population estimate]])/RawData363[[#This Row],[2022 5-yr population estimate]] -> 0.02411792926 | F132: 6.6 | G132: 3.7 | H132: 87437
A133: Govan town | B133: Bamberg County | C133: 56 | D133: 61 | E133: =(RawData363[[#This Row],[2023 5-yr population estimate]]-RawData363[[#This Row],[2022 5-yr population estimate]])/RawData363[[#This Row],[2022 5-yr population estimate]] -> 0.08928571429 | F133: 9.8 | G133: 6.2 | H133: 95833
A134: Gramling CDP | B134: Spartanburg County | C134: 79 | D134: 89 | E134: =(RawData363[[#This Row],[2023 5-yr population estimate]]-RawData363[[#This Row],[2022 5-yr population estimate]])/RawData363[[#This Row],[2022 5-yr population estimate]] -> 0.1265822785 | F134: 14.5 | G134: 4.2 | H134: 64195
A135: Graniteville CDP | B135: Aiken County | C135: 2465 | D135: 2176 | E135: =(RawData363[[#This Row],[2023 5-yr population estimate]]-RawData363[[#This Row],[2022 5-yr population estimate]])/RawData363[[#This Row],[2022 5-yr population estimate]] -> -0.1172413793 | F135: 33.4 | G135: 4.2 | H135: 29495
A136: Gray Court town | B136: Laurens County | C136: 778 | D136: 731 | E136: =(RawData363[[#This Row],[2023 5-yr population estimate]]-RawData363[[#This Row],[2022 5-yr population estimate]])/RawData363[[#This Row],[2022 5-yr population estimate]] -> -0.06041131105 | F136: 13 | G136: 4.4 | H136: 64286
A137: Great Falls town | B137: Chester County | C137: 1669 | D137: 1741 | E137: =(RawData363[[#This Row],[2023 5-yr population estimate]]-RawData363[[#This Row],[2022 5-yr population estimate]])/RawData363[[#This Row],[2022 5-yr population estimate]] -> 0.04313960455 | F137: 33.5 | G137: 5.5 | H137: 30475
A138: Greeleyville town | B138: Williamsburg County | C138: 418 | D138: 364 | E138: =(RawData363[[#This Row],[2023 5-yr population estimate]]-RawData363[[#This Row],[2022 5-yr population estimate]])/RawData363[[#This Row],[2022 5-yr population estimate]] -> -0.1291866029 | F138: 26.9 | G138: 6.6 | H138: 31250
A139: Greenville city | B139: Greenville County | C139: 70838 | D139: 71755 | E139: =(RawData363[[#This Row],[2023 5-yr population estimate]]-RawData363[[#This Row],[2022 5-yr population estimate]])/RawData363[[#This Row],[2022 5-yr population estimate]] -> 0.0129450295 | F139: 14.1 | G139: 3.7 | H139: 68460
A140: Greenwood city | B140: Greenwood County | C140: 22528 | D140: 22527 | E140: =(RawData363[[#This Row],[2023 5-yr population estimate]]-RawData363[[#This Row],[2022 5-yr population estimate]])/RawData363[[#This Row],[2022 5-yr population estimate]] -> -4.438920455e-05 | F140: 25.1 | G140: 5.2 | H140: 40253
A141: Greer city | B141: Greenville County | C141: 37010 | D141: 39191 | E141: =(RawData363[[#This Row],[2023 5-yr population estimate]]-RawData363[[#This Row],[2022 5-yr population estimate]])/RawData363[[#This Row],[2022 5-yr population estimate]] -> 0.05893001891 | F141: 9.9 | G141: 3.7 | H141: 80030
A142: Hampton town | B142: Hampton County | C142: 2725 | D142: 2691 | E142: =(RawData363[[#This Row],[2023 5-yr population estimate]]-RawData363[[#This Row],[2022 5-yr population estimate]])/RawData363[[#This Row],[2022 5-yr population estimate]] -> -0.01247706422 | F142: 14.1 | G142: 4 | H142: 45809
A143: Hanahan city | B143: Berkeley County | C143: 20731 | D143: 21119 | E143: =(RawData363[[#This Row],[2023 5-yr population estimate]]-RawData363[[#This Row],[2022 5-yr population estimate]])/RawData363[[#This Row],[2022 5-yr population estimate]] -> 0.01871593266 | F143: 10.9 | G143: 3.7 | H143: 84061
A144: Hardeeville city | B144: Beaufort County | C144: 8048 | D144: 9293 | E144: =(RawData363[[#This Row],[2023 5-yr population estimate]]-RawData363[[#This Row],[2022 5-yr population estimate]])/RawData363[[#This Row],[2022 5-yr population estimate]] -> 0.1546968191 | F144: 10.8 | G144: 3.8 | H144: 78233
A145: Harleyville town | B145: Dorchester County | C145: 879 | D145: 653 | E145: =(RawData363[[#This Row],[2023 5-yr population estimate]]-RawData363[[#This Row],[2022 5-yr population estimate]])/RawData363[[#This Row],[2022 5-yr population estimate]] -> -0.2571103527 | F145: 25.3 | G145: 3.7 | H145: 60231
A146: Hartsville city | B146: Darlington County | C146: 7450 | D146: 7422 | E146: =(RawData363[[#This Row],[2023 5-yr population estimate]]-RawData363[[#This Row],[2022 5-yr population estimate]])/RawData363[[#This Row],[2022 5-yr population estimate]] -> -0.003758389262 | F146: 23.5 | G146: 4.8 | H146: 47720
A147: Heath Springs town | B147: Lancaster County | C147: 800 | D147: 825 | E147: =(RawData363[[#This Row],[2023 5-yr population estimate]]-RawData363[[#This Row],[2022 5-yr population estimate]])/RawData363[[#This Row],[2022 5-yr population estimate]] -> 0.03125 | F147: 15.9 | G147: 4.3 | H147: 50500
A148: Hemingway town | B148: Williamsburg County | C148: 421 | D148: 413 | E148: =(RawData363[[#This Row],[2023 5-yr population estimate]]-RawData363[[#This Row],[2022 5-yr population estimate]])/RawData363[[#This Row],[2022 5-yr population estimate]] -> -0.0190023753 | F148: 11.2 | G148: 6.6 | H148: 44375
A149: Hickory Grove town | B149: York County | C149: 541 | D149: 559 | E149: =(RawData363[[#This Row],[2023 5-yr population estimate]]-RawData363[[#This Row],[2022 5-yr population estimate]])/RawData363[[#This Row],[2022 5-yr population estimate]] -> 0.03327171904 | F149: 12.2 | G149: 4 | H149: 61250
A150: Hilda town | B150: Barnwell County | C150: 430 | D150: 506 | E150: =(RawData363[[#This Row],[2023 5-yr population estimate]]-RawData363[[#This Row],[2022 5-yr population estimate]])/RawData363[[#This Row],[2022 5-yr population estimate]] -> 0.176744186 | F150: 22.4 | G150: 5.6 | H150: 46111
A151: Hilton Head Island town | B151: Beaufort County | C151: 37708 | D151: 37805 | E151: =(RawData363[[#This Row],[2023 5-yr population estimate]]-RawData363[[#This Row],[2022 5-yr population estimate]])/RawData363[[#This Row],[2022 5-yr population estimate]] -> 0.00257239843 | F151: 8.4 | G151: 3.8 | H151: 96715
A152: Hodges town | B152: Greenwood County | C152: 173 | D152: 177 | E152: =(RawData363[[#This Row],[2023 5-yr population estimate]]-RawData363[[#This Row],[2022 5-yr population estimate]])/RawData363[[#This Row],[2022 5-yr population estimate]] -> 0.02312138728 | F152: 28.2 | G152: 5.2 | H152: 54531
A153: Holly Hill town | B153: Orangeburg County | C153: 1384 | D153: 1415 | E153: =(RawData363[[#This Row],[2023 5-yr population estimate]]-RawData363[[#This Row],[2022 5-yr population estimate]])/RawData363[[#This Row],[2022 5-yr population estimate]] -> 0.02239884393 | F153: 37 | G153: 6 | H153: 34792
A154: Hollywood town | B154: Dorchester County | C154: 5397 | D154: 5330 | E154: =(RawData363[[#This Row],[2023 5-yr population estimate]]-RawData363[[#This Row],[2022 5-yr population estimate]])/RawData363[[#This Row],[2022 5-yr population estimate]] -> -0.01241430424 | F154: 9 | G154: 3.7 | H154: 77415
A155: Homeland Park CDP | B155: Anderson County | C155: 7451 | D155: 6944 | E155: =(RawData363[[#This Row],[2023 5-yr population estimate]]-RawData363[[#This Row],[2022 5-yr population estimate]])/RawData363[[#This Row],[2022 5-yr population estimate]] -> -0.06804455778 | F155: 33.4 | G155: 3.8 | H155: 38079
A156: Honea Path town | B156: Anderson County | C156: 3662 | D156: 3734 | E156: =(RawData363[[#This Row],[2023 5-yr population estimate]]-RawData363[[#This Row],[2022 5-yr population estimate]])/RawData363[[#This Row],[2022 5-yr population estimate]] -> 0.01966138722 | F156: 25.6 | G156: 3.8 | H156: 56304
A157: Hopkins CDP | B157: Richland County | C157: 1738 | D157: 1962 | E157: =(RawData363[[#This Row],[2023 5-yr population estimate]]-RawData363[[#This Row],[2022 5-yr population estimate]])/RawData363[[#This Row],[2022 5-yr population estimate]] -> 0.1288837745 | F157: 19.5 | G157: 4.3 | H157: 49464
A158: India Hook CDP | B158: York County | C158: 4385 | D158: 3794 | E158: =(RawData363[[#This Row],[2023 5-yr population estimate]]-RawData363[[#This Row],[2022 5-yr population estimate]])/RawData363[[#This Row],[2022 5-yr population estimate]] -> -0.1347776511 | F158: 1.1 | G158: 4 | H158: 94505
A159: Inman city | B159: Spartanburg County | C159: 2987 | D159: 3085 | E159: =(RawData363[[#This Row],[2023 5-yr population estimate]]-RawData363[[#This Row],[2022 5-yr population estimate]])/RawData363[[#This Row],[2022 5-yr population estimate]] -> 0.0328088383 | F159: 16.8 | G159: 4.2 | H159: 55156
A160: Inman Mills CDP | B160: Spartanburg County | C160: 956 | D160: 896 | E160: =(RawData363[[#This Row],[2023 5-yr population estimate]]-RawData363[[#This Row],[2022 5-yr population estimate]])/RawData363[[#This Row],[2022 5-yr population estimate]] -> -0.06276150628 | F160: 16.9 | G160: 4.2 | H160: 42031
A161: Irmo town | B161: Lexington County | C161: 11685 | D161: 11799 | E161: =(RawData363[[#This Row],[2023 5-yr population estimate]]-RawData363[[#This Row],[2022 5-yr population estimate]])/RawData363[[#This Row],[2022 5-yr population estimate]] -> 0.009756097561 | F161: 8.1 | G161: 3.6 | H161: 85137
A162: Irwin CDP | B162: Lancaster County | C162: 1868 | D162: 1801 | E162: =(RawData363[[#This Row],[2023 5-yr population estimate]]-RawData363[[#This Row],[2022 5-yr population estimate]])/RawData363[[#This Row],[2022 5-yr population estimate]] -> -0.03586723769 | F162: 35.5 | G162: 4.3 | H162: 53795
A163: Islandton CDP | B163: Colleton County | C163: 40 | D163: 54 | E163: =(RawData363[[#This Row],[2023 5-yr population estimate]]-RawData363[[#This Row],[2022 5-yr population estimate]])/RawData363[[#This Row],[2022 5-yr population estimate]] -> 0.35 | F163: 18.7 | G163: 4.6 | H163: 38250
A164: Isle of Palms city | B164: Charleston County | C164: 4347 | D164: 4350 | E164: =(RawData363[[#This Row],[2023 5-yr population estimate]]-RawData363[[#This Row],[2022 5-yr population estimate]])/RawData363[[#This Row],[2022 5-yr population estimate]] -> 0.0006901311249 | F164: 1.8 | G164: 3.4 | H164: 148029
A165: Iva town | B165: Anderson County | C165: 1030 | D165: 937 | E165: =(RawData363[[#This Row],[2023 5-yr population estimate]]-RawData363[[#This Row],[2022 5-yr population estimate]])/RawData363[[#This Row],[2022 5-yr population estimate]] -> -0.09029126214 | F165: 35.2 | G165: 3.8 | H165: 24313
A166: Jackson town | B166: Aiken County | C166: 1882 | D166: 1782 | E166: =(RawData363[[#This Row],[2023 5-yr population estimate]]-RawData363[[#This Row],[2022 5-yr population estimate]])/RawData363[[#This Row],[2022 5-yr population estimate]] -> -0.05313496281 | F166: 8.1 | G166: 4.2 | H166: 37067
A167: Jacksonboro CDP | B167: Colleton County | C167: 270 | D167: 220 | E167: =(RawData363[[#This Row],[2023 5-yr population estimate]]-RawData363[[#This Row],[2022 5-yr population estimate]])/RawData363[[#This Row],[2022 5-yr population estimate]] -> -0.1851851852 | F167: 20.5 | G167: 4.6 | H167: 48779
A168: James Island town | B168: Charleston County | C168: 11689 | D168: 11738 | E168: =(RawData363[[#This Row],[2023 5-yr population estimate]]-RawData363[[#This Row],[2022 5-yr population estimate]])/RawData363[[#This Row],[2022 5-yr population estimate]] -> 0.004191975361 | F168: 5.4 | G168: 3.4 | H168: 100176
A169: Jamestown town | B169: Berkeley County | C169: 78 | D169: 70 | E169: =(RawData363[[#This Row],[2023 5-yr population estimate]]-RawData363[[#This Row],[2022 5-yr population estimate]])/RawData363[[#This Row],[2022 5-yr population estimate]] -> -0.1025641026 | F169: 1.4 | G169: 3.7 | H169: 82327
A170: Jefferson town | B170: Chesterfield County | C170: 830 | D170: 753 | E170: =(RawData363[[#This Row],[2023 5-yr population estimate]]-RawData363[[#This Row],[2022 5-yr population estimate]])/RawData363[[#This Row],[2022 5-yr population estimate]] -> -0.09277108434 | F170: 21.6 | G170: 4.7 | H170: 35227
A171: Jenkinsville town | B171: Fairfield County | C171: 54 | D171: 47 | E171: =(RawData363[[#This Row],[2023 5-yr population estimate]]-RawData363[[#This Row],[2022 5-yr population estimate]])/RawData363[[#This Row],[2022 5-yr population estimate]] -> -0.1296296296 | F171: 72.3 | G171: 5 | H171: 46972
A172: Joanna CDP | B172: Laurens County | C172: 1406 | D172: 1375 | E172: =(RawData363[[#This Row],[2023 5-yr population estimate]]-RawData363[[#This Row],[2022 5-yr population estimate]])/RawData363[[#This Row],[2022 5-yr population estimate]] -> -0.02204836415 | F172: 17.2 | G172: 4.4 | H172: 42169
A173: Johnsonville city | B173: Williamsburg County | C173: 1108 | D173: 1037 | E173: =(RawData363[[#This Row],[2023 5-yr population estimate]]-RawData363[[#This Row],[2022 5-yr population estimate]])/RawData363[[#This Row],[2022 5-yr population estimate]] -> -0.06407942238 | F173: 26.9 | G173: 6.6 | H173: 47891
A174: Johnston town | B174: Edgefield County | C174: 2375 | D174: 2518 | E174: =(RawData363[[#This Row],[2023 5-yr population estimate]]-RawData363[[#This Row],[2022 5-yr population estimate]])/RawData363[[#This Row],[2022 5-yr population estimate]] -> 0.06021052632 | F174: 27.1 | G174: 3.9 | H174: 34957
A175: Jonesville town | B175: Union County | C175: 925 | D175: 1016 | E175: =(RawData363[[#This Row],[2023 5-yr population estimate]]-RawData363[[#This Row],[2022 5-yr population estimate]])/RawData363[[#This Row],[2022 5-yr population estimate]] -> 0.09837837838 | F175: 18.9 | G175: 5.5 | H175: 35000
A176: Judson CDP | B176: Greenville County | C176: 1879 | D176: 2201 | E176: =(RawData363[[#This Row],[2023 5-yr population estimate]]-RawData363[[#This Row],[2022 5-yr population estimate]])/RawData363[[#This Row],[2022 5-yr population estimate]] -> 0.1713677488 | F176: 37.3 | G176: 3.7 | H176: 33600
A177: Kershaw town | B177: Lancaster County | C177: 2311 | D177: 2220 | E177: =(RawData363[[#This Row],[2023 5-yr population estimate]]-RawData363[[#This Row],[2022 5-yr population estimate]])/RawData363[[#This Row],[2022 5-yr population estimate]] -> -0.03937689312 | F177: 17 | G177: 4.3 | H177: 58077
A178: Kiawah Island town | B178: Charleston County | C178: 2130 | D178: 2196 | E178: =(RawData363[[#This Row],[2023 5-yr population estimate]]-RawData363[[#This Row],[2022 5-yr population estimate]])/RawData363[[#This Row],[2022 5-yr population estimate]] -> 0.03098591549 | F178: 2.7 | G178: 3.4 | H178: 236607
A179: Kingstree town | B179: Williamsburg County | C179: 3202 | D179: 3161 | E179: =(RawData363[[#This Row],[2023 5-yr population estimate]]-RawData363[[#This Row],[2022 5-yr population estimate]])/RawData363[[#This Row],[2022 5-yr population estimate]] -> -0.01280449719 | F179: 34.5 | G179: 6.6 | H179: 28776
A180: Kline town | B180: Barnwell County | C180: 195 | D180: 135 | E180: =(RawData363[[#This Row],[2023 5-yr population estimate]]-RawData363[[#This Row],[2022 5-yr population estimate]])/RawData363[[#This Row],[2022 5-yr population estimate]] -> -0.3076923077 | F180: 12.6 | G180: 5.6 | H180: 68750
A181: Ladson CDP | B181: Dorchester County | C181: 15298 | D181: 16261 | E181: =(RawData363[[#This Row],[2023 5-yr population estimate]]-RawData363[[#This Row],[2022 5-yr population estimate]])/RawData363[[#This Row],[2022 5-yr population estimate]] -> 0.06294940515 | F181: 12.1 | G181: 3.7 | H181: 83031
A182: Lake City city | B182: Florence County | C182: 6080 | D182: 6032 | E182: =(RawData363[[#This Row],[2023 5-yr population estimate]]-RawData363[[#This Row],[2022 5-yr population estimate]])/RawData363[[#This Row],[2022 5-yr population estimate]] -> -0.007894736842 | F182: 24.5 | G182: 4.4 | H182: 35000
A183: Lake Murray of Richland CDP | B183: Lexington County | C183: 6914 | D183: 7057 | E183: =(RawData363[[#This Row],[2023 5-yr population estimate]]-RawData363[[#This Row],[2022 5-yr population estimate]])/RawData363[[#This Row],[2022 5-yr population estimate]] -> 0.02068267284 | F183: 0.7 | G183: 3.6 | H183: 118435
A184: Lake Secession CDP | B184: Anderson County | C184: 1246 | D184: 1209 | E184: =(RawData363[[#This Row],[2023 5-yr population estimate]]-RawData363[[#This Row],[2022 5-yr population estimate]])/RawData363[[#This Row],[2022 5-yr population estimate]] -> -0.02969502408 | F184: 5.6 | G184: 3.8 | H184: 46933
A185: Lake View town | B185: Dillon County | C185: 702 | D185: 661 | E185: =(RawData363[[#This Row],[2023 5-yr population estimate]]-RawData363[[#This Row],[2022 5-yr population estimate]])/RawData363[[#This Row],[2022 5-yr population estimate]] -> -0.0584045584 | F185: 27.2 | G185: 6 | H185: 31033
A186: Lake Wylie CDP | B186: York County | C186: 14382 | D186: 15177 | E186: =(RawData363[[#This Row],[2023 5-yr population estimate]]-RawData363[[#This Row],[2022 5-yr population estimate]])/RawData363[[#This Row],[2022 5-yr population estimate]] -> 0.05527743012 | F186: 10.7 | G186: 4 | H186: 112113
A187: Lakewood CDP | B187: Sumter County | C187: 3135 | D187: 3154 | E187: =(RawData363[[#This Row],[2023 5-yr population estimate]]-RawData363[[#This Row],[2022 5-yr population estimate]])/RawData363[[#This Row],[2022 5-yr population estimate]] -> 0.006060606061 | F187: 10.3 | G187: 5.2 | H187: 49255
A188: Lamar town | B188: Darlington County | C188: 1217 | D188: 1446 | E188: =(RawData363[[#This Row],[2023 5-yr population estimate]]-RawData363[[#This Row],[2022 5-yr population estimate]])/RawData363[[#This Row],[2022 5-yr population estimate]] -> 0.1881676253 | F188: 31.3 | G188: 4.8 | H188: 44000
A189: Lancaster city | B189: Lancaster County | C189: 8592 | D189: 8738 | E189: =(RawData363[[#This Row],[2023 5-yr population estimate]]-RawData363[[#This Row],[2022 5-yr population estimate]])/RawData363[[#This Row],[2022 5-yr population estimate]] -> 0.01699255121 | F189: 27.5 | G189: 4.3 | H189: 43234
A190: Landrum city | B190: Spartanburg County | C190: 2504 | D190: 2564 | E190: =(RawData363[[#This Row],[2023 5-yr population estimate]]-RawData363[[#This Row],[2022 5-yr population estimate]])/RawData363[[#This Row],[2022 5-yr population estimate]] -> 0.02396166134 | F190: 18.6 | G190: 4.2 | H190: 41161
A191: Lane town | B191: Williamsburg County | C191: 539 | D191: 531 | E191: =(RawData363[[#This Row],[2023 5-yr population estimate]]-RawData363[[#This Row],[2022 5-yr population estimate]])/RawData363[[#This Row],[2022 5-yr population estimate]] -> -0.01484230056 | F191: 14.9 | G191: 6.6 | H191: 35726
A192: Langley CDP | B192: Aiken County | C192: 1776 | D192: 1718 | E192: =(RawData363[[#This Row],[2023 5-yr population estimate]]-RawData363[[#This Row],[2022 5-yr population estimate]])/RawData363[[#This Row],[2022 5-yr population estimate]] -> -0.03265765766 | F192: 29.2 | G192: 4.2 | H192: 50750
A193: Latta town | B193: Dillon County | C193: 1519 | D193: 1301 | E193: =(RawData363[[#This Row],[2023 5-yr population estimate]]-RawData363[[#This Row],[2022 5-yr population estimate]])/RawData363[[#This Row],[2022 5-yr population estimate]] -> -0.1435154707 | F193: 27 | G193: 6 | H193: 45500
A194: Laurel Bay CDP | B194: Beaufort County | C194: 5513 | D194: 5627 | E194: =(RawData363[[#This Row],[2023 5-yr population estimate]]-RawData363[[#This Row],[2022 5-yr population estimate]])/RawData363[[#This Row],[2022 5-yr population estimate]] -> 0.02067839652 | F194: 17.9 | G194: 3.8 | H194: 52094
A195: Laurens city | B195: Laurens County | C195: 9276 | D195: 9307 | E195: =(RawData363[[#This Row],[2023 5-yr population estimate]]-RawData363[[#This Row],[2022 5-yr population estimate]])/RawData363[[#This Row],[2022 5-yr population estimate]] -> 0.00334195774 | F195: 22 | G195: 4.4 | H195: 55207
A196: Lesslie CDP | B196: York County | C196: 3114 | D196: 3202 | E196: =(RawData363[[#This Row],[2023 5-yr population estimate]]-RawData363[[#This Row],[2022 5-yr population estimate]])/RawData363[[#This Row],[2022 5-yr population estimate]] -> 0.02825947335 | F196: 4 | G196: 4 | H196: 86500
A197: Lexington town | B197: Lexington County | C197: 23665 | D197: 24132 | E197: =(RawData363[[#This Row],[2023 5-yr population estimate]]-RawData363[[#This Row],[2022 5-yr population estimate]])/RawData363[[#This Row],[2022 5-yr population estimate]] -> 0.01973378407 | F197: 7.4 | G197: 3.6 | H197: 83263
A198: Liberty city | B198: Pickens County | C198: 3329 | D198: 3337 | E198: =(RawData363[[#This Row],[2023 5-yr population estimate]]-RawData363[[#This Row],[2022 5-yr population estimate]])/RawData363[[#This Row],[2022 5-yr population estimate]] -> 0.002403124061 | F198: 19.4 | G198: 4 | H198: 42077
A199: Lincolnville town | B199: Dorchester County | C199: 641 | D199: 835 | E199: =(RawData363[[#This Row],[2023 5-yr population estimate]]-RawData363[[#This Row],[2022 5-yr population estimate]])/RawData363[[#This Row],[2022 5-yr population estimate]] -> 0.3026521061 | F199: 31.6 | G199: 3.7 | H199: 36538
A200: Little Mountain town | B200: Newberry County | C200: 456 | D200: 446 | E200: =(RawData363[[#This Row],[2023 5-yr population estimate]]-RawData363[[#This Row],[2022 5-yr population estimate]])/RawData363[[#This Row],[2022 5-yr population estimate]] -> -0.02192982456 | F200: 13.5 | G200: 4.2 | H200: 90893
... 198 more rows
